Workbook

Sheet _xltb_storage_ (hidden)
A1: XL Toolbox Settings
B2: export_path | C2: C:\Users\Thomas Oscar\Documents\My Documents\2020\2020r\2020X\Figure 3.png

Sheet 1
A1: Validation Tool for Predictive Microbiology (Version LN) | E1: ValTLN
A4: Spreadsheet | B4: Description
A5: 2 | B5: Dependent Data Input
A6: 3 | B6: Decision Tree for Dependent Data
A7: 4 | B7: Independent Data for Interpolation
A8: 5 | B8: Decision Tree for Interpolation
A9: 6 | B9: Independent Data for Extrapolation
A10: 7 | B10: Decision Tree for Extrapolation
A11: Welcome to ValT (vault) a spreadsheet tool for validation of primary, secondary, and tertiary models that predict log number of human bacterial pathogens in food as a function of one or more independent variables. ValT was developed by the U. S. Department of Agriculture, Agricultural Research Service. It is based on the test data, model performance, and model validation criteria of the acceptable prediction zones (APZ) method.
AB28: 0.5 | AC28: 0.5 | AD28: =-2*AC28 -> -1 | AF28: 0.86 | AG28: -0.53 | AI28: 0.5 | AJ28: 1 | AK28: =-2*AJ28 -> -2
AB29: 0.6 | AC29: 0.5 | AD29: -1 | AF29: 0.95 | AG29: -0.53 | AI29: 0.6 | AJ29: 1 | AK29: -2
AB30: 0.7 | AC30: 0.5 | AD30: -1 | AF30: 0.55 | AG30: -0.53 | AI30: 0.7 | AJ30: 1 | AK30: -2
AB31: 0.8 | AC31: 0.5 | AD31: -1 | AF31: 0.55 | AG31: -0.1 | AI31: 0.8 | AJ31: 1 | AK31: -2
AB32: 0.9 | AC32: 0.5 | AD32: -1 | AF32: 0.55 | AG32: -0.1 | AI32: 0.9 | AJ32: 1 | AK32: -2
AB33: 1 | AC33: 0.5 | AD33: -1 | AF33: 0.98 | AG33: -0.1 | AI33: 1 | AJ33: 1 | AK33: -2
AB34: 1.1 | AC34: 0.5 | AD34: -1 | AF34: 0.98 | AG34: -0.1 | AI34: 1.1 | AJ34: 1 | AK34: -2
AB35: 1.2 | AC35: 0.5 | AD35: -1 | AF35: 0.98 | AG35: 0.37 | AI35: 1.2 | AJ35: 1 | AK35: -2
AB36: 1.3 | AC36: 0.5 | AD36: -1 | AF36: 0.98 | AG36: -0.67 | AI36: 1.3 | AJ36: 1 | AK36: -2
AB37: 1.4 | AC37: 0.5 | AD37: -1 | AF37: 1.45 | AG37: -0.34 | AI37: 1.4 | AJ37: 1 | AK37: -2
AB38: 1.5 | AC38: 0.5 | AD38: -1 | AF38: 0.98 | AG38: -0.2 | AI38: 1.5 | AJ38: 1 | AK38: -2
AB39: 1.6 | AC39: 0.5 | AD39: -1 | AF39: 1.31 | AG39: -0.2 | AI39: 1.6 | AJ39: 1 | AK39: -2
AB40: 1.7 | AC40: 0.5 | AD40: -1 | AF40: 1.45 | AG40: 0.01 | AI40: 1.7 | AJ40: 1 | AK40: -2
AB41: 1.8 | AC41: 0.5 | AD41: -1 | AF41: 1.45 | AG41: 0.11 | AI41: 1.8 | AJ41: 1 | AK41: -2
AB42: 1.9 | AC42: 0.5 | AD42: -1 | AF42: 1.66 | AG42: 0.23 | AI42: 1.9 | AJ42: 1 | AK42: -2
AB43: 2 | AC43: 0.5 | AD43: -1 | AF43: 1.76 | AG43: 0.61 | AI43: 2 | AJ43: 1 | AK43: -2
AB44: 2.1 | AC44: 0.5 | AD44: -1 | AF44: 1.88 | AG44: -0.94 | AI44: 2.1 | AJ44: 1 | AK44: -2
AB45: 2.2 | AC45: 0.5 | AD45: -1 | AF45: 2.26 | AG45: -0.34 | AI45: 2.2 | AJ45: 1 | AK45: -2
AB46: 2.3 | AC46: 0.5 | AD46: -1 | AF46: 1.66 | AG46: -0.2 | AI46: 2.3 | AJ46: 1 | AK46: -2
AB47: 2.4 | AC47: 0.5 | AD47: -1 | AF47: 2.26 | AG47: -0.2 | AI47: 2.4 | AJ47: 1 | AK47: -2
AB48: 2.5 | AC48: 0.5 | AD48: -1 | AF48: 2.4 | AG48: -0.13 | AI48: 2.5 | AJ48: 1 | AK48: -2
AB49: 2.6 | AC49: 0.5 | AD49: -1 | AF49: 2.4 | AG49: -0.02 | AI49: 2.6 | AJ49: 1 | AK49: -2
AB50: 2.7 | AC50: 0.5 | AD50: -1 | AF50: 2.47 | AG50: 0.65 | AI50: 2.7 | AJ50: 1 | AK50: -2
AB51: 2.8 | AC51: 0.5 | AD51: -1 | AF51: 2.58 | AG51: 0.76 | AI51: 2.8 | AJ51: 1 | AK51: -2
AB52: 2.9 | AC52: 0.5 | AD52: -1 | AF52: 3.25 | AG52: -0.84 | AI52: 2.9 | AJ52: 1 | AK52: -2
AB53: 3 | AC53: 0.5 | AD53: -1 | AF53: 3.36 | AG53: -0.84 | AI53: 3 | AJ53: 1 | AK53: -2
AB54: 3.1 | AC54: 0.5 | AD54: -1 | AF54: 2.93 | AG54: -0.7 | AI54: 3.1 | AJ54: 1 | AK54: -2
AB55: 3.2 | AC55: 0.5 | AD55: -1 | AF55: 2.93 | AG55: -0.51 | AI55: 3.2 | AJ55: 1 | AK55: -2
AB56: 3.3 | AC56: 0.5 | AD56: -1 | AF56: 3.07 | AG56: -0.37 | AI56: 3.3 | AJ56: 1 | AK56: -2
AB57: 3.4 | AC57: 0.5 | AD57: -1 | AF57: 3.26 | AG57: 0.12 | AI57: 3.4 | AJ57: 1 | AK57: -2
AB58: 3.5 | AC58: 0.5 | AD58: -1 | AF58: 3.4 | AG58: 0.13 | AI58: 3.5 | AJ58: 1 | AK58: -2
AB59: 3.6 | AC59: 0.5 | AD59: -1 | AF59: 3.89 | AG59: 0.78 | AI59: 3.6 | AJ59: 1 | AK59: -2
AB60: 3.7 | AC60: 0.5 | AD60: =-2*AC60 -> -1 | AF60: 3.9 | AG60: -0.11 | AI60: 3.7 | AJ60: 1 | AK60: =-2*AJ60 -> -2
AB61: 3.8 | AC61: 0.5 | AD61: -1 | AF61: 4.55 | AG61: 0 | AI61: 3.8 | AJ61: 1 | AK61: -2
AB62: 3.9 | AC62: 0.5 | AD62: -1 | AF62: 0.74 | AG62: 0 | AI62: 3.9 | AJ62: 1 | AK62: -2
AB63: 4 | AC63: 0.5 | AD63: -1 | AF63: 0.85 | AG63: 0.05 | AI63: 4 | AJ63: 1 | AK63: -2
AB64: 4.1 | AC64: 0.5 | AD64: -1 | AF64: 0.85 | AG64: 0.05 | AI64: 4.1 | AJ64: 1 | AK64: -2
AB65: 4.2 | AC65: 0.5 | AD65: -1 | AF65: 0.9 | AG65: 0.05 | AI65: 4.2 | AJ65: 1 | AK65: -2
AB66: 4.3 | AC66: 0.5 | AD66: -1 | AF66: 0.9 | AG66: 0.08 | AI66: 4.3 | AJ66: 1 | AK66: -2
AB67: 4.4 | AC67: 0.5 | AD67: -1 | AF67: 0.9 | AG67: 0.13 | AI67: 4.4 | AJ67: 1 | AK67: -2
AB68: 4.5 | AC68: 0.5 | AD68: -1 | AF68: 0.93 | AG68: -0.18 | AI68: 4.5 | AJ68: 1 | AK68: -2
AB69: 4.6 | AC69: 0.5 | AD69: -1 | AF69: 0.98 | AG69: -0.18 | AI69: 4.6 | AJ69: 1 | AK69: -2
AB70: 4.7 | AC70: 0.5 | AD70: -1 | AF70: 0.98 | AG70: -0.18 | AI70: 4.7 | AJ70: 1 | AK70: -2
AB71: 4.8 | AC71: 0.5 | AD71: -1 | AF71: 0.98 | AG71: -0.18 | AI71: 4.8 | AJ71: 1 | AK71: -2
AB72: 4.9 | AC72: 0.5 | AD72: -1 | AF72: 0.98 | AG72: -0.11 | AI72: 4.9 | AJ72: 1 | AK72: -2
AB73: 5 | AC73: 0.5 | AD73: -1 | AF73: 0.98 | AG73: 0.29 | AI73: 5 | AJ73: 1 | AK73: -2
AB74: 5.1 | AC74: 0.5 | AD74: -1 | AF74: 1.05 | AG74: 0.29 | AI74: 5.1 | AJ74: 1 | AK74: -2
AB75: 5.2 | AC75: 0.5 | AD75: -1 | AF75: 1.45 | AG75: 0.29 | AI75: 5.2 | AJ75: 1 | AK75: -2
AB76: 5.3 | AC76: 0.5 | AD76: -1 | AF76: 1.45 | AG76: -1.02 | AI76: 5.3 | AJ76: 1 | AK76: -2
AB77: 5.4 | AC77: 0.5 | AD77: -1 | AF77: 1.45 | AG77: -0.86 | AI77: 5.4 | AJ77: 1 | AK77: -2
AB78: 5.5 | AC78: 0.5 | AD78: -1 | AF78: 1.15 | AG78: -0.51 | AI78: 5.5 | AJ78: 1 | AK78: -2
AB79: 5.6 | AC79: 0.5 | AD79: -1 | AF79: 1.31 | AG79: -0.51 | AI79: 5.6 | AJ79: 1 | AK79: -2
AB80: 5.7 | AC80: 0.5 | AD80: -1 | AF80: 1.66 | AG80: -0.29 | AI80: 5.7 | AJ80: 1 | AK80: -2
AB81: 5.8 | AC81: 0.5 | AD81: -1 | AF81: 1.66 | AG81: 0.09 | AI81: 5.8 | AJ81: 1 | AK81: -2
AB82: 5.9 | AC82: 0.5 | AD82: -1 | AF82: 1.88 | AG82: 0.23 | AI82: 5.9 | AJ82: 1 | AK82: -2
AB83: 6 | AC83: 0.5 | AD83: -1 | AF83: 2.26 | AG83: 0.41 | AI83: 6 | AJ83: 1 | AK83: -2
AB84: 6.1 | AC84: 0.5 | AD84: -1 | AF84: 2.4 | AG84: -0.62 | AI84: 6.1 | AJ84: 1 | AK84: -2
AB85: 6.2 | AC85: 0.5 | AD85: -1 | AF85: 2.58 | AG85: -0.35 | AI85: 6.2 | AJ85: 1 | AK85: -2
AB86: 6.3 | AC86: 0.5 | AD86: -1 | AF86: 3.21 | AG86: -0.22 | AI86: 6.3 | AJ86: 1 | AK86: -2
AB87: 6.4 | AC87: 0.5 | AD87: -1 | AF87: 3.48 | AG87: -0.06 | AI87: 6.4 | AJ87: 1 | AK87: -2
AB88: 6.5 | AC88: 0.5 | AD88: =-2*AC88 -> -1 | AF88: 3.61 | AG88: 0.01 | AI88: 6.5 | AJ88: 1 | AK88: =-2*AJ88 -> -2
AB89: 6.6 | AC89: 0.5 | AD89: -1 | AF89: 3.77 | AG89: 0.25 | AI89: 6.6 | AJ89: 1 | AK89: -2
AB90: 6.7 | AC90: 0.5 | AD90: -1 | AF90: 3.84 | AG90: 0.35 | AI90: 6.7 | AJ90: 1 | AK90: -2
AB91: 6.8 | AC91: 0.5 | AD91: -1 | AF91: 4.08 | AG91: 0.47 | AI91: 6.8 | AJ91: 1 | AK91: -2
AB92: 6.9 | AC92: 0.5 | AD92: -1 | AF92: 4.18 | AG92: -1.48 | AI92: 6.9 | AJ92: 1 | AK92: -2
AB93: 7 | AC93: 0.5 | AD93: -1 | AF93: 4.3 | AG93: -0.68 | AI93: 7 | AJ93: 1 | AK93: -2
AB94: 7.1 | AC94: 0.5 | AD94: -1 | AF94: 4.21 | AG94: -0.45 | AI94: 7.1 | AJ94: 1 | AK94: -2
AB95: 7.2 | AC95: 0.5 | AD95: -1 | AF95: 5.01 | AG95: -0.31 | AI95: 7.2 | AJ95: 1 | AK95: -2
AB96: 7.3 | AC96: 0.5 | AD96: -1 | AF96: 5.24 | AG96: -0.16 | AI96: 7.3 | AJ96: 1 | AK96: -2
AB97: 7.4 | AC97: 0.5 | AD97: -1 | AF97: 5.38 | AG97: -0.15 | AI97: 7.4 | AJ97: 1 | AK97: -2
AB98: 7.5 | AC98: 0.5 | AD98: -1 | AF98: 5.53 | AG98: 0.05 | AI98: 7.5 | AJ98: 1 | AK98: -2
AB99: 7.6 | AC99: 0.5 | AD99: -1 | AF99: 5.54 | AG99: 0.07 | AI99: 7.6 | AJ99: 1 | AK99: -2
AB100: 7.7 | AC100: 0.5 | AD100: -1 | AF100: 5.74 | AG100: -0.07 | AI100: 7.7 | AJ100: 1 | AK100: -2
AB101: 7.8 | AC101: 0.5 | AD101: -1 | AF101: 5.76 | AG101: -0.07 | AI101: 7.8 | AJ101: 1 | AK101: -2
AB102: 7.9 | AC102: 0.5 | AD102: -1 | AF102: 0.78 | AG102: 0 | AI102: 7.9 | AJ102: 1 | AK102: -2
AB103: 8 | AC103: 0.5 | AD103: -1 | AF103: 0.78 | AG103: 0 | AI103: 8 | AJ103: 1 | AK103: -2
AB104: 8.1 | AC104: 0.5 | AD104: -1 | AF104: 0.85 | AG104: 0 | AI104: 8.1 | AJ104: 1 | AK104: -2
AB105: 8.2 | AC105: 0.5 | AD105: -1 | AF105: 0.85 | AG105: 0 | AI105: 8.2 | AJ105: 1 | AK105: -2
AB106: 8.3 | AC106: 0.5 | AD106: -1 | AF106: 0.85 | AG106: 0 | AI106: 8.3 | AJ106: 1 | AK106: -2
AB107: 8.4 | AC107: 0.5 | AD107: -1 | AF107: 0.85 | AG107: 0.1 | AI107: 8.4 | AJ107: 1 | AK107: -2
AB108: 8.5 | AC108: 0.5 | AD108: -1 | AF108: 0.85 | AG108: -0.73 | AI108: 8.5 | AJ108: 1 | AK108: -2
AB109: 8.6 | AC109: 0.5 | AD109: -1 | AF109: 0.95 | AG109: -0.66 | AI109: 8.6 | AJ109: 1 | AK109: -2
AB110: 8.7 | AC110: 0.5 | AD110: -1 | AF110: 0.48 | AG110: -0.66 | AI110: 8.7 | AJ110: 1 | AK110: -2
AB111: 8.8 | AC111: 0.5 | AD111: -1 | AF111: 0.55 | AG111: -0.34 | AI111: 8.8 | AJ111: 1 | AK111: -2
AB112: 8.9 | AC112: 0.5 | AD112: -1 | AF112: 0.55 | AG112: -0.23 | AI112: 8.9 | AJ112: 1 | AK112: -2
AB113: 9 | AC113: 0.5 | AD113: -1 | AF113: 0.87 | AG113: -0.23 | AI113: 9 | AJ113: 1 | AK113: -2
AB114: 9.1 | AC114: 0.5 | AD114: -1 | AF114: 0.98 | AG114: -0.23 | AI114: 9.1 | AJ114: 1 | AK114: -2
AB115: 9.2 | AC115: 0.5 | AD115: -1 | AF115: 0.98 | AG115: -0.23 | AI115: 9.2 | AJ115: 1 | AK115: -2
AB116: 9.3 | AC116: 0.5 | AD116: -1 | AF116: 0.98 | AG116: -0.56 | AI116: 9.3 | AJ116: 1 | AK116: -2
AB117: 9.4 | AC117: 0.5 | AD117: -1 | AF117: 0.98 | AG117: -0.27 | AI117: 9.4 | AJ117: 1 | AK117: -2
AB118: 9.5 | AC118: 0.5 | AD118: -1 | AF118: 1.97 | AG118: -0.13 | AI118: 9.5 | AJ118: 1 | AK118: -2
AB119: 9.6 | AC119: 0.5 | AD119: -1 | AF119: 2.26 | AG119: -0.13 | AI119: 9.6 | AJ119: 1 | AK119: -2
AB120: 9.7 | AC120: 0.5 | AD120: -1 | AF120: 2.4 | AG120: 0.05 | AI120: 9.7 | AJ120: 1 | AK120: -2
AB121: 9.8 | AC121: 0.5 | AD121: -1 | AF121: 2.4 | AG121: 0.05 | AI121: 9.8 | AJ121: 1 | AK121: -2
AB122: 9.9 | AC122: 0.5 | AD122: -1 | AF122: 2.58 | AG122: 0.4 | AI122: 9.9 | AJ122: 1 | AK122: -2
AB123: 10 | AC123: 0.5 | AD123: -1 | AF123: 2.58 | AG123: 0.54 | AI123: 10 | AJ123: 1 | AK123: -2
AF124: 2.93 | AG124: -0.71
AF125: 3.07 | AG125: -0.51
AF126: 3.85 | AG126: 0.27
AF127: 4.05 | AG127: 0.56
AF128: 4.83 | AG128: 0.63
AF129: 5.12 | AG129: 0.66
AF130: 5.19 | AG130: 0.72
AF131: 5.22 | AG131: -0.69
AF132: 5.28 | AG132: -0.43
AF133: 6.06 | AG133: -0.42
AF134: 6.32 | AG134: -0.2
AF135: 6.33 | AG135: -0.01
AF136: 6.55 | AG136: 0.06
AF137: 6.74 | AG137: 0.29
AF138: 6.81 | AG138: 0.62
AF139: 7.04 | AG139: 0.29
AF140: 7.37 | AG140: 0.62

Sheet 2
A1: Tag | B1: Strain | C1: Food | D1: Temp | E1: Time | F1: Obs | G1: Pred | H1: Residual | I1: APZ
A2: Train | B2: 18177 | C2: milk | D2: -20 | E2: 0 | F2: 7 | G2: 6.999984777 | H2: =IF(F2="","",IF(F2*G2<0,-2.01,F2-G2)) -> 1.522280344e-05 | I2: =IF(H2="","",IF(H2<-2,0,IF(H2>1,0,VLOOKUP(H2,'8'!$A$2:$B$1503,2,TRUE)))) -> 1
A3: Train | B3: 18177 | C3: milk | D3: -20 | E3: 1 | F3: 6.6 | G3: 6.599977167 | H3: 2.283333619e-05 | I3: =IF(H3="","",IF(H3<-2,0,IF(H3>1,0,VLOOKUP(H3,'8'!$A$2:$B$1503,2,TRUE)))) -> 1
A4: Train | B4: 18177 | C4: milk | D4: -20 | E4: 2 | F4: 5.6 | G4: 5.600003806 | H4: -3.805556032e-06 | I4: =IF(H4="","",IF(H4<-2,0,IF(H4>1,0,VLOOKUP(H4,'8'!$A$2:$B$1503,2,TRUE)))) -> 1
A5: Train | B5: 18177 | C5: milk | D5: -20 | E5: 3 | F5: 4.7 | G5: 4.700034251 | H5: -3.425130774e-05 | I5: =IF(H5="","",IF(H5<-2,0,IF(H5>1,0,VLOOKUP(H5,'8'!$A$2:$B$1503,2,TRUE)))) -> 1
A6: Test | B6: 18177 | C6: milk | D6: -20 | E6: 4 | F6: 3.8 | G6: 3.65 | H6: 0.15 | I6: =IF(H6="","",IF(H6<-2,0,IF(H6>1,0,VLOOKUP(H6,'8'!$A$2:$B$1503,2,TRUE)))) -> 1
A7: Train | B7: 18177 | C7: milk | D7: -20 | E7: 5 | F7: 2.6 | G7: 2.59994672 | H7: 5.327981204e-05 | I7: =IF(H7="","",IF(H7<-2,0,IF(H7>1,0,VLOOKUP(H7,'8'!$A$2:$B$1503,2,TRUE)))) -> 1
A8: Train | B8: 18177 | C8: milk | D8: -20 | E8: 6 | F8: 1.2 | G8: 1.200022833 | H8: -2.283333619e-05 | I8: =IF(H8="","",IF(H8<-2,0,IF(H8>1,0,VLOOKUP(H8,'8'!$A$2:$B$1503,2,TRUE)))) -> 1
A9: Train | B9: 18177 | C9: milk | D9: -20 | E9: 7 | F9: 0.4 | G9: 0.4000148417 | H9: -1.484166852e-05 | I9: =IF(H9="","",IF(H9<-2,0,IF(H9>1,0,VLOOKUP(H9,'8'!$A$2:$B$1503,2,TRUE)))) -> 1
A10: Train | B10: 18177 | C10: milk | D10: -20 | E10: 8 | F10: -0.01 | G10: -0.009984396626 | H10: -1.560337353e-05 | I10: =IF(H10="","",IF(H10<-2,0,IF(H10>1,0,VLOOKUP(H10,'8'!$A$2:$B$1503,2,TRUE)))) -> 1
A11: Test | B11: 18177 | C11: milk | D11: -20 | E11: 9 | F11: -0.01 | G11: -0.01 | H11: -1.087151202e-14 | I11: =IF(H11="","",IF(H11<-2,0,IF(H11>1,0,VLOOKUP(H11,'8'!$A$2:$B$1503,2,TRUE)))) -> 1
A12: Train | B12: 18177 | C12: milk | D12: -20 | E12: 10 | F12: -0.01 | G12: -0.01 | H12: -2.133709875e-16 | I12: =IF(H12="","",IF(H12<-2,0,IF(H12>1,0,VLOOKUP(H12,'8'!$A$2:$B$1503,2,TRUE)))) -> 1
A13: Train | B13: 18177 | C13: milk | D13: -20 | E13: 11 | F13: -0.01 | G13: -0.01 | H13: -2.133709875e-16 | I13: =IF(H13="","",IF(H13<-2,0,IF(H13>1,0,VLOOKUP(H13,'8'!$A$2:$B$1503,2,TRUE)))) -> 1
A14: Train | B14: 18177 | C14: milk | D14: -20 | E14: 12 | F14: -0.01 | G14: -0.01 | H14: -2.133709875e-16 | I14: =IF(H14="","",IF(H14<-2,0,IF(H14>1,0,VLOOKUP(H14,'8'!$A$2:$B$1503,2,TRUE)))) -> 1
A15: Test | B15: 18177 | C15: milk | D15: -20 | E15: 13 | F15: -0.01 | G15: -0.01 | H15: -2.133709875e-16 | I15: =IF(H15="","",IF(H15<-2,0,IF(H15>1,0,VLOOKUP(H15,'8'!$A$2:$B$1503,2,TRUE)))) -> 1
A16: Train | B16: 18177 | C16: milk | D16: -20 | E16: 14 | F16: -0.01 | G16: -0.01 | H16: -2.133709875e-16 | I16: =IF(H16="","",IF(H16<-2,0,IF(H16>1,0,VLOOKUP(H16,'8'!$A$2:$B$1503,2,TRUE)))) -> 1
A17: Train | B17: 29428 | C17: milk | D17: -20 | E17: 0 | F17: 7.5 | G17: 7.499961943 | H17: 3.80570086e-05 | I17: =IF(H17="","",IF(H17<-2,0,IF(H17>1,0,VLOOKUP(H17,'8'!$A$2:$B$1503,2,TRUE)))) -> 1
A18: Train | B18: 29428 | C18: milk | D18: -20 | E18: 1 | F18: 6.5 | G18: 6.499969556 | H18: 3.044444825e-05 | I18: =IF(H18="","",IF(H18<-2,0,IF(H18>1,0,VLOOKUP(H18,'8'!$A$2:$B$1503,2,TRUE)))) -> 1
A19: Train | B19: 29428 | C19: milk | D19: -20 | E19: 2 | F19: 4.7 | G19: 4.699984778 | H19: 1.522222413e-05 | I19: =IF(H19="","",IF(H19<-2,0,IF(H19>1,0,VLOOKUP(H19,'8'!$A$2:$B$1503,2,TRUE)))) -> 1
A20: Train | B20: 29428 | C20: milk | D20: -20 | E20: 3 | F20: 2.5 | G20: 2.500083725 | H20: -8.372541892e-05 | I20: =IF(H20="","",IF(H20<-2,0,IF(H20>1,0,VLOOKUP(H20,'8'!$A$2:$B$1503,2,TRUE)))) -> 1
A21: Test | B21: 29428 | C21: milk | D21: -20 | E21: 4 | F21: 1.2 | G21: 1.245 | H21: -0.045 | I21: =IF(H21="","",IF(H21<-2,0,IF(H21>1,0,VLOOKUP(H21,'8'!$A$2:$B$1503,2,TRUE)))) -> 1
A22: Train | B22: 29428 | C22: milk | D22: -20 | E22: 5 | F22: -0.01 | G22: -0.01 | H22: -2.133709875e-16 | I22: =IF(H22="","",IF(H22<-2,0,IF(H22>1,0,VLOOKUP(H22,'8'!$A$2:$B$1503,2,TRUE)))) -> 1
A23: Train | B23: 29428 | C23: milk | D23: -20 | E23: 6 | F23: -0.01 | G23: -0.01 | H23: -2.133709875e-16 | I23: =IF(H23="","",IF(H23<-2,0,IF(H23>1,0,VLOOKUP(H23,'8'!$A$2:$B$1503,2,TRUE)))) -> 1
A24: Train | B24: 29428 | C24: milk | D24: -20 | E24: 7 | F24: -0.01 | G24: -0.01 | H24: -2.133709875e-16 | I24: =IF(H24="","",IF(H24<-2,0,IF(H24>1,0,VLOOKUP(H24,'8'!$A$2:$B$1503,2,TRUE)))) -> 1
A25: Train | B25: 29428 | C25: milk | D25: -20 | E25: 8 | F25: -0.01 | G25: -0.01 | H25: -2.133709875e-16 | I25: =IF(H25="","",IF(H25<-2,0,IF(H25>1,0,VLOOKUP(H25,'8'!$A$2:$B$1503,2,TRUE)))) -> 1
A26: Test | B26: 29428 | C26: milk | D26: -20 | E26: 9 | F26: -0.01 | G26: -0.01 | H26: -2.133709875e-16 | I26: =IF(H26="","",IF(H26<-2,0,IF(H26>1,0,VLOOKUP(H26,'8'!$A$2:$B$1503,2,TRUE)))) -> 1
A27: Train | B27: 29428 | C27: milk | D27: -20 | E27: 10 | F27: -0.01 | G27: -0.01 | H27: -2.133709875e-16 | I27: =IF(H27="","",IF(H27<-2,0,IF(H27>1,0,VLOOKUP(H27,'8'!$A$2:$B$1503,2,TRUE)))) -> 1
A28: Train | B28: 29428 | C28: milk | D28: -20 | E28: 11 | F28: -0.01 | G28: -0.01 | H28: -2.133709875e-16 | I28: =IF(H28="","",IF(H28<-2,0,IF(H28>1,0,VLOOKUP(H28,'8'!$A$2:$B$1503,2,TRUE)))) -> 1
A29: Train | B29: 29428 | C29: milk | D29: -20 | E29: 12 | F29: -0.01 | G29: -0.01 | H29: -2.133709875e-16 | I29: =IF(H29="","",IF(H29<-2,0,IF(H29>1,0,VLOOKUP(H29,'8'!$A$2:$B$1503,2,TRUE)))) -> 1
A30: Test | B30: 29428 | C30: milk | D30: -20 | E30: 13 | F30: -0.01 | G30: -0.01 | H30: -2.133709875e-16 | I30: =IF(H30="","",IF(H30<-2,0,IF(H30>1,0,VLOOKUP(H30,'8'!$A$2:$B$1503,2,TRUE)))) -> 1
A31: Train | B31: 29428 | C31: milk | D31: -20 | E31: 14 | F31: -0.01 | G31: -0.01 | H31: -2.133709875e-16 | I31: =IF(H31="","",IF(H31<-2,0,IF(H31>1,0,VLOOKUP(H31,'8'!$A$2:$B$1503,2,TRUE)))) -> 1
A32: Train | B32: 18177 | C32: milk | D32: 1 | E32: 0 | F32: 6.3 | G32: 6.299996194 | H32: 3.805700859e-06 | I32: =IF(H32="","",IF(H32<-2,0,IF(H32>1,0,VLOOKUP(H32,'8'!$A$2:$B$1503,2,TRUE)))) -> 1
A33: Train | B33: 18177 | C33: milk | D33: 1 | E33: 1 | F33: 6.2 | G33: 6.199988583 | H33: 1.14166681e-05 | I33: =IF(H33="","",IF(H33<-2,0,IF(H33>1,0,VLOOKUP(H33,'8'!$A$2:$B$1503,2,TRUE)))) -> 1
A34: Train | B34: 18177 | C34: milk | D34: 1 | E34: 2 | F34: 5.8 | G34: 5.799984778 | H34: 1.522222413e-05 | I34: =IF(H34="","",IF(H34<-2,0,IF(H34>1,0,VLOOKUP(H34,'8'!$A$2:$B$1503,2,TRUE)))) -> 1
A35: Train | B35: 18177 | C35: milk | D35: 1 | E35: 3 | F35: 5 | G35: 5.000030446 | H35: -3.044560688e-05 | I35: =IF(H35="","",IF(H35<-2,0,IF(H35>1,0,VLOOKUP(H35,'8'!$A$2:$B$1503,2,TRUE)))) -> 1
A36: Test | B36: 18177 | C36: milk | D36: 1 | E36: 4 | F36: 4.8 | G36: 4.8 | H36: -1.33226763e-14 | I36: =IF(H36="","",IF(H36<-2,0,IF(H36>1,0,VLOOKUP(H36,'8'!$A$2:$B$1503,2,TRUE)))) -> 1
A37: Train | B37: 18177 | C37: milk | D37: 1 | E37: 5 | F37: 4.6 | G37: 4.599988583 | H37: 1.141710258e-05 | I37: =IF(H37="","",IF(H37<-2,0,IF(H37>1,0,VLOOKUP(H37,'8'!$A$2:$B$1503,2,TRUE)))) -> 1
A38: Train | B38: 18177 | C38: milk | D38: 1 | E38: 6 | F38: 4.3 | G38: 4.300007611 | H38: -7.611112064e-06 | I38: =IF(H38="","",IF(H38<-2,0,IF(H38>1,0,VLOOKUP(H38,'8'!$A$2:$B$1503,2,TRUE)))) -> 1
A39: Train | B39: 18177 | C39: milk | D39: 1 | E39: 7 | F39: 4.2 | G39: 4.199984778 | H39: 1.522222413e-05 | I39: =IF(H39="","",IF(H39<-2,0,IF(H39>1,0,VLOOKUP(H39,'8'!$A$2:$B$1503,2,TRUE)))) -> 1
A40: Train | B40: 18177 | C40: milk | D40: 1 | E40: 8 | F40: 3.7 | G40: 3.700019029 | H40: -1.90285043e-05 | I40: =IF(H40="","",IF(H40<-2,0,IF(H40>1,0,VLOOKUP(H40,'8'!$A$2:$B$1503,2,TRUE)))) -> 1
A41: Test | B41: 18177 | C41: milk | D41: 1 | E41: 9 | F41: 3.5 | G41: 3.45 | H41: 0.05 | I41: =IF(H41="","",IF(H41<-2,0,IF(H41>1,0,VLOOKUP(H41,'8'!$A$2:$B$1503,2,TRUE)))) -> 1
A42: Train | B42: 18177 | C42: milk | D42: 1 | E42: 10 | F42: 3.2 | G42: 3.199996194 | H42: 3.80570086e-06 | I42: =IF(H42="","",IF(H42<-2,0,IF(H42>1,0,VLOOKUP(H42,'8'!$A$2:$B$1503,2,TRUE)))) -> 1
A43: Train | B43: 18177 | C43: milk | D43: 1 | E43: 11 | F43: 3.1 | G43: 3.099996194 | H43: 3.805556032e-06 | I43: =IF(H43="","",IF(H43<-2,0,IF(H43>1,0,VLOOKUP(H43,'8'!$A$2:$B$1503,2,TRUE)))) -> 1
A44: Train | B44: 18177 | C44: milk | D44: 1 | E44: 12 | F44: 2.9 | G44: 2.900007611 | H44: -7.61140172e-06 | I44: =IF(H44="","",IF(H44<-2,0,IF(H44>1,0,VLOOKUP(H44,'8'!$A$2:$B$1503,2,TRUE)))) -> 1
A45: Test | B45: 18177 | C45: milk | D45: 1 | E45: 13 | F45: 2.2 | G45: 2.35 | H45: -0.15 | I45: =IF(H45="","",IF(H45<-2,0,IF(H45>1,0,VLOOKUP(H45,'8'!$A$2:$B$1503,2,TRUE)))) -> 1
A46: Train | B46: 18177 | C46: milk | D46: 1 | E46: 14 | F46: 1.8 | G46: 1.8 | H46: 2.220446049e-16 | I46: =IF(H46="","",IF(H46<-2,0,IF(H46>1,0,VLOOKUP(H46,'8'!$A$2:$B$1503,2,TRUE)))) -> 1
A47: Train | B47: 29428 | C47: milk | D47: 1 | E47: 0 | F47: 7.3 | G47: 7.299996194 | H47: 3.805700859e-06 | I47: =IF(H47="","",IF(H47<-2,0,IF(H47>1,0,VLOOKUP(H47,'8'!$A$2:$B$1503,2,TRUE)))) -> 1
A48: Train | B48: 29428 | C48: milk | D48: 1 | E48: 1 | F48: 7.2 | G48: 7.199984778 | H48: 1.522222413e-05 | I48: =IF(H48="","",IF(H48<-2,0,IF(H48>1,0,VLOOKUP(H48,'8'!$A$2:$B$1503,2,TRUE)))) -> 1
A49: Train | B49: 29428 | C49: milk | D49: 1 | E49: 2 | F49: 6.7 | G49: 6.700011417 | H49: -1.14166681e-05 | I49: =IF(H49="","",IF(H49<-2,0,IF(H49>1,0,VLOOKUP(H49,'8'!$A$2:$B$1503,2,TRUE)))) -> 1
A50: Train | B50: 29428 | C50: milk | D50: 1 | E50: 3 | F50: 6.5 | G50: 6.500007611 | H50: -7.61140172e-06 | I50: =IF(H50="","",IF(H50<-2,0,IF(H50>1,0,VLOOKUP(H50,'8'!$A$2:$B$1503,2,TRUE)))) -> 1
A51: Test | B51: 29428 | C51: milk | D51: 1 | E51: 4 | F51: 6.1 | G51: 6.2 | H51: -0.1 | I51: =IF(H51="","",IF(H51<-2,0,IF(H51>1,0,VLOOKUP(H51,'8'!$A$2:$B$1503,2,TRUE)))) -> 1
A52: Train | B52: 29428 | C52: milk | D52: 1 | E52: 5 | F52: 5.9 | G52: 5.899996194 | H52: 3.80570086e-06 | I52: =IF(H52="","",IF(H52<-2,0,IF(H52>1,0,VLOOKUP(H52,'8'!$A$2:$B$1503,2,TRUE)))) -> 1
A53: Train | B53: 29428 | C53: milk | D53: 1 | E53: 6 | F53: 5.8 | G53: 5.799992389 | H53: 7.611112063e-06 | I53: =IF(H53="","",IF(H53<-2,0,IF(H53>1,0,VLOOKUP(H53,'8'!$A$2:$B$1503,2,TRUE)))) -> 1
A54: Train | B54: 29428 | C54: milk | D54: 1 | E54: 7 | F54: 5.5 | G54: 5.5 | H54: -8.881784197e-16 | I54: =IF(H54="","",IF(H54<-2,0,IF(H54>1,0,VLOOKUP(H54,'8'!$A$2:$B$1503,2,TRUE)))) -> 1
A55: Train | B55: 29428 | C55: milk | D55: 1 | E55: 8 | F55: 5.2 | G55: 5.200011417 | H55: -1.141710258e-05 | I55: =IF(H55="","",IF(H55<-2,0,IF(H55>1,0,VLOOKUP(H55,'8'!$A$2:$B$1503,2,TRUE)))) -> 1
A56: Test | B56: 29428 | C56: milk | D56: 1 | E56: 9 | F56: 5 | G56: 4.9 | H56: 0.1 | I56: =IF(H56="","",IF(H56<-2,0,IF(H56>1,0,VLOOKUP(H56,'8'!$A$2:$B$1503,2,TRUE)))) -> 1
A57: Train | B57: 29428 | C57: milk | D57: 1 | E57: 10 | F57: 4.6 | G57: 4.599996194 | H57: 3.80570086e-06 | I57: =IF(H57="","",IF(H57<-2,0,IF(H57>1,0,VLOOKUP(H57,'8'!$A$2:$B$1503,2,TRUE)))) -> 1
A58: Train | B58: 29428 | C58: milk | D58: 1 | E58: 11 | F58: 4.5 | G58: 4.499973361 | H58: 2.663889222e-05 | I58: =IF(H58="","",IF(H58<-2,0,IF(H58>1,0,VLOOKUP(H58,'8'!$A$2:$B$1503,2,TRUE)))) -> 1
A59: Train | B59: 29428 | C59: milk | D59: 1 | E59: 12 | F59: 3.7 | G59: 3.700030446 | H59: -3.044560688e-05 | I59: =IF(H59="","",IF(H59<-2,0,IF(H59>1,0,VLOOKUP(H59,'8'!$A$2:$B$1503,2,TRUE)))) -> 1
A60: Test | B60: 29428 | C60: milk | D60: 1 | E60: 13 | F60: 3.4 | G60: 3.5 | H60: -0.1 | I60: =IF(H60="","",IF(H60<-2,0,IF(H60>1,0,VLOOKUP(H60,'8'!$A$2:$B$1503,2,TRUE)))) -> 1
A61: Train | B61: 29428 | C61: milk | D61: 1 | E61: 14 | F61: 3.3 | G61: 3.3 | H61: 0 | I61: =IF(H61="","",IF(H61<-2,0,IF(H61>1,0,VLOOKUP(H61,'8'!$A$2:$B$1503,2,TRUE)))) -> 1
A62: Train | B62: 18177 | C62: milk | D62: 10 | E62: 0 | F62: 6.4 | G62: 6.399992389 | H62: 7.61140172e-06 | I62: =IF(H62="","",IF(H62<-2,0,IF(H62>1,0,VLOOKUP(H62,'8'!$A$2:$B$1503,2,TRUE)))) -> 1
A63: Train | B63: 18177 | C63: milk | D63: 10 | E63: 1 | F63: 6.2 | G63: 6.200007611 | H63: -7.611112064e-06 | I63: =IF(H63="","",IF(H63<-2,0,IF(H63>1,0,VLOOKUP(H63,'8'!$A$2:$B$1503,2,TRUE)))) -> 1
A64: Train | B64: 18177 | C64: milk | D64: 10 | E64: 2 | F64: 6.2 | G64: 6.199992389 | H64: 7.611112063e-06 | I64: =IF(H64="","",IF(H64<-2,0,IF(H64>1,0,VLOOKUP(H64,'8'!$A$2:$B$1503,2,TRUE)))) -> 1
A65: Train | B65: 18177 | C65: milk | D65: 10 | E65: 3 | F65: 6 | G65: 6.000007611 | H65: -7.61140172e-06 | I65: =IF(H65="","",IF(H65<-2,0,IF(H65>1,0,VLOOKUP(H65,'8'!$A$2:$B$1503,2,TRUE)))) -> 1
A66: Test | B66: 18177 | C66: milk | D66: 10 | E66: 4 | F66: 5.9 | G66: 5.85 | H66: =IF(F66="","",IF(F66*G66<0,-2.01,F66-G66)) -> 0.05 | I66: =IF(H66="","",IF(H66<-2,0,IF(H66>1,0,VLOOKUP(H66,'8'!$A$2:$B$1503,2,TRUE)))) -> 1
A67: Train | B67: 18177 | C67: milk | D67: 10 | E67: 5 | F67: 5.7 | G67: 5.700003806 | H67: -3.80570086e-06 | I67: =IF(H67="","",IF(H67<-2,0,IF(H67>1,0,VLOOKUP(H67,'8'!$A$2:$B$1503,2,TRUE)))) -> 1
A68: Train | B68: 18177 | C68: milk | D68: 10 | E68: 6 | F68: 5.8 | G68: 5.799988583 | H68: 1.14166681e-05 | I68: =IF(H68="","",IF(H68<-2,0,IF(H68>1,0,VLOOKUP(H68,'8'!$A$2:$B$1503,2,TRUE)))) -> 1
A69: Train | B69: 18177 | C69: milk | D69: 10 | E69: 7 | F69: 5.6 | G69: 5.600003806 | H69: -3.805556032e-06 | I69: =IF(H69="","",IF(H69<-2,0,IF(H69>1,0,VLOOKUP(H69,'8'!$A$2:$B$1503,2,TRUE)))) -> 1
A70: Train | B70: 18177 | C70: milk | D70: 10 | E70: 8 | F70: 5.5 | G70: 5.500003806 | H70: -3.80570086e-06 | I70: =IF(H70="","",IF(H70<-2,0,IF(H70>1,0,VLOOKUP(H70,'8'!$A$2:$B$1503,2,TRUE)))) -> 1
A71: Test | B71: 18177 | C71: milk | D71: 10 | E71: 9 | F71: 4.4 | G71: 4.2 | H71: 0.2 | I71: =IF(H71="","",IF(H71<-2,0,IF(H71>1,0,VLOOKUP(H71,'8'!$A$2:$B$1503,2,TRUE)))) -> 1
A72: Train | B72: 18177 | C72: milk | D72: 10 | E72: 10 | F72: 2.9 | G72: 2.899961943 | H72: 3.80570086e-05 | I72: =IF(H72="","",IF(H72<-2,0,IF(H72>1,0,VLOOKUP(H72,'8'!$A$2:$B$1503,2,TRUE)))) -> 1
A73: Train | B73: 18177 | C73: milk | D73: 10 | E73: 11 | F73: 1.9 | G73: 1.900019028 | H73: -1.902778016e-05 | I73: =IF(H73="","",IF(H73<-2,0,IF(H73>1,0,VLOOKUP(H73,'8'!$A$2:$B$1503,2,TRUE)))) -> 1
A74: Train | B74: 18177 | C74: milk | D74: 10 | E74: 12 | F74: 1.4 | G74: 1.400019029 | H74: -1.90285043e-05 | I74: =IF(H74="","",IF(H74<-2,0,IF(H74>1,0,VLOOKUP(H74,'8'!$A$2:$B$1503,2,TRUE)))) -> 1
A75: Test | B75: 18177 | C75: milk | D75: 10 | E75: 13 | F75: 0.4 | G75: 0.85 | H75: -0.45 | I75: =IF(H75="","",IF(H75<-2,0,IF(H75>1,0,VLOOKUP(H75,'8'!$A$2:$B$1503,2,TRUE)))) -> 1
A76: Train | B76: 18177 | C76: milk | D76: 10 | E76: 14 | F76: 0.3 | G76: 0.3 | H76: 1.665334537e-16 | I76: =IF(H76="","",IF(H76<-2,0,IF(H76>1,0,VLOOKUP(H76,'8'!$A$2:$B$1503,2,TRUE)))) -> 1
A77: Train | B77: 29428 | C77: milk | D77: 10 | E77: 0 | F77: 5.8 | G77: 5.799992389 | H77: 7.61140172e-06 | I77: =IF(H77="","",IF(H77<-2,0,IF(H77>1,0,VLOOKUP(H77,'8'!$A$2:$B$1503,2,TRUE)))) -> 1
A78: Train | B78: 29428 | C78: milk | D78: 10 | E78: 1 | F78: 5.6 | G78: 5.600011417 | H78: -1.14166681e-05 | I78: =IF(H78="","",IF(H78<-2,0,IF(H78>1,0,VLOOKUP(H78,'8'!$A$2:$B$1503,2,TRUE)))) -> 1
A79: Train | B79: 29428 | C79: milk | D79: 10 | E79: 2 | F79: 5.7 | G79: 5.699969556 | H79: 3.044444825e-05 | I79: =IF(H79="","",IF(H79<-2,0,IF(H79>1,0,VLOOKUP(H79,'8'!$A$2:$B$1503,2,TRUE)))) -> 1
A80: Train | B80: 29428 | C80: milk | D80: 10 | E80: 3 | F80: 5 | G80: 5.00002664 | H80: -2.663990602e-05 | I80: =IF(H80="","",IF(H80<-2,0,IF(H80>1,0,VLOOKUP(H80,'8'!$A$2:$B$1503,2,TRUE)))) -> 1
A81: Test | B81: 29428 | C81: milk | D81: 10 | E81: 4 | F81: 5 | G81: 4.65 | H81: 0.35 | I81: =IF(H81="","",IF(H81<-2,0,IF(H81>1,0,VLOOKUP(H81,'8'!$A$2:$B$1503,2,TRUE)))) -> 1
A82: Train | B82: 29428 | C82: milk | D82: 10 | E82: 5 | F82: 4.3 | G82: 4.299984777 | H82: 1.522280344e-05 | I82: =IF(H82="","",IF(H82<-2,0,IF(H82>1,0,VLOOKUP(H82,'8'!$A$2:$B$1503,2,TRUE)))) -> 1
A83: Train | B83: 29428 | C83: milk | D83: 10 | E83: 6 | F83: 3.9 | G83: 3.900007611 | H83: -7.611112064e-06 | I83: =IF(H83="","",IF(H83<-2,0,IF(H83>1,0,VLOOKUP(H83,'8'!$A$2:$B$1503,2,TRUE)))) -> 1
A84: Train | B84: 29428 | C84: milk | D84: 10 | E84: 7 | F84: 3.7 | G84: 3.699980972 | H84: 1.902778016e-05 | I84: =IF(H84="","",IF(H84<-2,0,IF(H84>1,0,VLOOKUP(H84,'8'!$A$2:$B$1503,2,TRUE)))) -> 1
A85: Train | B85: 29428 | C85: milk | D85: 10 | E85: 8 | F85: 3 | G85: 3.00002664 | H85: -2.663990602e-05 | I85: =IF(H85="","",IF(H85<-2,0,IF(H85>1,0,VLOOKUP(H85,'8'!$A$2:$B$1503,2,TRUE)))) -> 1
A86: Test | B86: 29428 | C86: milk | D86: 10 | E86: 9 | F86: 2 | G86: 2 | H86: 2.664535259e-15 | I86: =IF(H86="","",IF(H86<-2,0,IF(H86>1,0,VLOOKUP(H86,'8'!$A$2:$B$1503,2,TRUE)))) -> 1
A87: Train | B87: 29428 | C87: milk | D87: 10 | E87: 10 | F87: 1 | G87: 0.9999695544 | H87: 3.044560688e-05 | I87: =IF(H87="","",IF(H87<-2,0,IF(H87>1,0,VLOOKUP(H87,'8'!$A$2:$B$1503,2,TRUE)))) -> 1
A88: Train | B88: 29428 | C88: milk | D88: 10 | E88: 11 | F88: 0.2 | G88: 0.2000224528 | H88: -2.245278059e-05 | I88: =IF(H88="","",IF(H88<-2,0,IF(H88>1,0,VLOOKUP(H88,'8'!$A$2:$B$1503,2,TRUE)))) -> 1
A89: Train | B89: 29428 | C89: milk | D89: 10 | E89: 12 | F89: -0.01 | G89: -0.009992008028 | H89: -7.991971806e-06 | I89: =IF(H89="","",IF(H89<-2,0,IF(H89>1,0,VLOOKUP(H89,'8'!$A$2:$B$1503,2,TRUE)))) -> 1
A90: Test | B90: 29428 | C90: milk | D90: 10 | E90: 13 | F90: -0.01 | G90: -0.01 | H90: -5.542441506e-15 | I90: =IF(H90="","",IF(H90<-2,0,IF(H90>1,0,VLOOKUP(H90,'8'!$A$2:$B$1503,2,TRUE)))) -> 1
A91: Train | B91: 29428 | C91: milk | D91: 10 | E91: 14 | F91: -0.01 | G91: -0.01 | H91: -2.133709875e-16 | I91: =IF(H91="","",IF(H91<-2,0,IF(H91>1,0,VLOOKUP(H91,'8'!$A$2:$B$1503,2,TRUE)))) -> 1
A92: Train | B92: 18177 | C92: milk | D92: 20 | E92: 0 | F92: 5.4 | G92: 5.395894983 | H92: 0.004105016501 | I92: =IF(H92="","",IF(H92<-2,0,IF(H92>1,0,VLOOKUP(H92,'8'!$A$2:$B$1503,2,TRUE)))) -> 1
A93: Train | B93: 18177 | C93: milk | D93: 20 | E93: 0.25 | F93: 5.5 | G93: 5.221920829 | H93: 0.2780791713 | I93: =IF(H93="","",IF(H93<-2,0,IF(H93>1,0,VLOOKUP(H93,'8'!$A$2:$B$1503,2,TRUE)))) -> 1
A94: Train | B94: 18177 | C94: milk | D94: 20 | E94: 0.5 | F94: 4.7 | G94: 4.748085451 | H94: -0.0480854511 | I94: =IF(H94="","",IF(H94<-2,0,IF(H94>1,0,VLOOKUP(H94,'8'!$A$2:$B$1503,2,TRUE)))) -> 1
A95: Train | B95: 18177 | C95: milk | D95: 20 | E95: 0.75 | F95: 4 | G95: 4.250925757 | H95: -0.2509257574 | I95: =IF(H95="","",IF(H95<-2,0,IF(H95>1,0,VLOOKUP(H95,'8'!$A$2:$B$1503,2,TRUE)))) -> 1
A96: Test | B96: 18177 | C96: milk | D96: 20 | E96: 1 | F96: 3.6 | G96: 3.594637429 | H96: 0.005362570668 | I96: =IF(H96="","",IF(H96<-2,0,IF(H96>1,0,VLOOKUP(H96,'8'!$A$2:$B$1503,2,TRUE)))) -> 1
A97: Train | B97: 18177 | C97: milk | D97: 20 | E97: 1.25 | F97: 3.2 | G97: 2.935792521 | H97: 0.2642074786 | I97: =IF(H97="","",IF(H97<-2,0,IF(H97>1,0,VLOOKUP(H97,'8'!$A$2:$B$1503,2,TRUE)))) -> 1
A98: Train | B98: 18177 | C98: milk | D98: 20 | E98: 1.5 | F98: 2.4 | G98: 2.496740955 | H98: -0.09674095494 | I98: =IF(H98="","",IF(H98<-2,0,IF(H98>1,0,VLOOKUP(H98,'8'!$A$2:$B$1503,2,TRUE)))) -> 1
A99: Train | B99: 18177 | C99: milk | D99: 20 | E99: 1.75 | F99: 2.1 | G99: 2.087997509 | H99: 0.01200249075 | I99: =IF(H99="","",IF(H99<-2,0,IF(H99>1,0,VLOOKUP(H99,'8'!$A$2:$B$1503,2,TRUE)))) -> 1
A100: Train | B100: 18177 | C100: milk | D100: 20 | E100: 2 | F100: 1.6 | G100: 1.728452422 | H100: -0.1284524223 | I100: =IF(H100="","",IF(H100<-2,0,IF(H100>1,0,VLOOKUP(H100,'8'!$A$2:$B$1503,2,TRUE)))) -> 1
A101: Test | B101: 18177 | C101: milk | D101: 20 | E101: 2.25 | F101: 0.6 | G101: 0.9202808245 | H101: -0.3202808245 | I101: =IF(H101="","",IF(H101<-2,0,IF(H101>1,0,VLOOKUP(H101,'8'!$A$2:$B$1503,2,TRUE)))) -> 1
A102: Train | B102: 18177 | C102: milk | D102: 20 | E102: 2.5 | F102: 0.2 | G102: 0.1932441737 | H102: 0.006755826339 | I102: =IF(H102="","",IF(H102<-2,0,IF(H102>1,0,VLOOKUP(H102,'8'!$A$2:$B$1503,2,TRUE)))) -> 1
A103: Train | B103: 18177 | C103: milk | D103: 20 | E103: 2.75 | F103: -0.01 | G103: 0.04650152933 | H103: -2.01 | I103: =IF(H103="","",IF(H103<-2,0,IF(H103>1,0,VLOOKUP(H103,'8'!$A$2:$B$1503,2,TRUE)))) -> 0
A104: Train | B104: 18177 | C104: milk | D104: 20 | E104: 3 | F104: -0.01 | G104: 0.000296034921 | H104: -2.01 | I104: =IF(H104="","",IF(H104<-2,0,IF(H104>1,0,VLOOKUP(H104,'8'!$A$2:$B$1503,2,TRUE)))) -> 0
A105: Train | B105: 29428 | C105: milk | D105: 20 | E105: 0 | F105: 6 | G105: 5.87421661 | H105: 0.1257833895 | I105: =IF(H105="","",IF(H105<-2,0,IF(H105>1,0,VLOOKUP(H105,'8'!$A$2:$B$1503,2,TRUE)))) -> 1
A106: Train | B106: 29428 | C106: milk | D106: 20 | E106: 0.25 | F106: 5.7 | G106: 5.68429026 | H106: 0.01570973965 | I106: =IF(H106="","",IF(H106<-2,0,IF(H106>1,0,VLOOKUP(H106,'8'!$A$2:$B$1503,2,TRUE)))) -> 1
A107: Train | B107: 29428 | C107: milk | D107: 20 | E107: 0.5 | F107: 5.5 | G107: 5.340744391 | H107: 0.1592556088 | I107: =IF(H107="","",IF(H107<-2,0,IF(H107>1,0,VLOOKUP(H107,'8'!$A$2:$B$1503,2,TRUE)))) -> 1
A108: Train | B108: 29428 | C108: milk | D108: 20 | E108: 0.75 | F108: 4.6 | G108: 4.837275187 | H108: -0.2372751873 | I108: =IF(H108="","",IF(H108<-2,0,IF(H108>1,0,VLOOKUP(H108,'8'!$A$2:$B$1503,2,TRUE)))) -> 1
A109: Test | B109: 29428 | C109: milk | D109: 20 | E109: 1 | F109: 3.4 | G109: 3.618725003 | H109: -0.2187250034 | I109: =IF(H109="","",IF(H109<-2,0,IF(H109>1,0,VLOOKUP(H109,'8'!$A$2:$B$1503,2,TRUE)))) -> 1
A110: Train | B110: 29428 | C110: milk | D110: 20 | E110: 1.25 | F110: 2.6 | G110: 2.446861649 | H110: 0.1531383508 | I110: =IF(H110="","",IF(H110<-2,0,IF(H110>1,0,VLOOKUP(H110,'8'!$A$2:$B$1503,2,TRUE)))) -> 1
A111: Train | B111: 29428 | C111: milk | D111: 20 | E111: 1.5 | F111: 2 | G111: 1.931564407 | H111: 0.06843559264 | I111: =IF(H111="","",IF(H111<-2,0,IF(H111>1,0,VLOOKUP(H111,'8'!$A$2:$B$1503,2,TRUE)))) -> 1
A112: Train | B112: 29428 | C112: milk | D112: 20 | E112: 1.75 | F112: 1.3 | G112: 1.370465812 | H112: -0.07046581152 | I112: =IF(H112="","",IF(H112<-2,0,IF(H112>1,0,VLOOKUP(H112,'8'!$A$2:$B$1503,2,TRUE)))) -> 1
A113: Train | B113: 29428 | C113: milk | D113: 20 | E113: 2 | F113: 0.7 | G113: 0.9172625924 | H113: -0.2172625924 | I113: =IF(H113="","",IF(H113<-2,0,IF(H113>1,0,VLOOKUP(H113,'8'!$A$2:$B$1503,2,TRUE)))) -> 1
A114: Test | B114: 29428 | C114: milk | D114: 20 | E114: 2.25 | F114: -0.01 | G114: 0.3870942681 | H114: -2.01 | I114: =IF(H114="","",IF(H114<-2,0,IF(H114>1,0,VLOOKUP(H114,'8'!$A$2:$B$1503,2,TRUE)))) -> 0
A115: Train | B115: 29428 | C115: milk | D115: 20 | E115: 2.5 | F115: -0.01 | G115: 0.02557930208 | H115: -2.01 | I115: =IF(H115="","",IF(H115<-2,0,IF(H115>1,0,VLOOKUP(H115,'8'!$A$2:$B$1503,2,TRUE)))) -> 0
A116: Train | B116: 29428 | C116: milk | D116: 20 | E116: 2.75 | F116: -0.01 | G116: -0.008851213855 | H116: -0.001148786145 | I116: =IF(H116="","",IF(H116<-2,0,IF(H116>1,0,VLOOKUP(H116,'8'!$A$2:$B$1503,2,TRUE)))) -> 1
A117: Train | B117: 29428 | C117: milk | D117: 20 | E117: 3 | F117: -0.01 | G117: -0.009983093918 | H117: -1.690608228e-05 | I117: =IF(H117="","",IF(H117<-2,0,IF(H117>1,0,VLOOKUP(H117,'8'!$A$2:$B$1503,2,TRUE)))) -> 1
A118: Train | B118: 18177 | C118: milk | D118: 30 | E118: 0 | F118: 6.2 | G118: 6.00195524 | H118: 0.1980447603 | I118: =IF(H118="","",IF(H118<-2,0,IF(H118>1,0,VLOOKUP(H118,'8'!$A$2:$B$1503,2,TRUE)))) -> 1
A119: Train | B119: 18177 | C119: milk | D119: 30 | E119: 0.25 | F119: 5.8 | G119: 5.631994003 | H119: 0.1680059973 | I119: =IF(H119="","",IF(H119<-2,0,IF(H119>1,0,VLOOKUP(H119,'8'!$A$2:$B$1503,2,TRUE)))) -> 1
A120: Train | B120: 18177 | C120: milk | D120: 30 | E120: 0.5 | F120: 4.9 | G120: 5.091741979 | H120: -0.1917419794 | I120: =IF(H120="","",IF(H120<-2,0,IF(H120>1,0,VLOOKUP(H120,'8'!$A$2:$B$1503,2,TRUE)))) -> 1
A121: Train | B121: 18177 | C121: milk | D121: 30 | E121: 0.75 | F121: 4.6 | G121: 4.629541184 | H121: -0.02954118416 | I121: =IF(H121="","",IF(H121<-2,0,IF(H121>1,0,VLOOKUP(H121,'8'!$A$2:$B$1503,2,TRUE)))) -> 1
A122: Test | B122: 18177 | C122: milk | D122: 30 | E122: 1 | F122: 3.1 | G122: 3.296984951 | H122: -0.1969849509 | I122: =IF(H122="","",IF(H122<-2,0,IF(H122>1,0,VLOOKUP(H122,'8'!$A$2:$B$1503,2,TRUE)))) -> 1
A123: Train | B123: 18177 | C123: milk | D123: 30 | E123: 1.25 | F123: 2.1 | G123: 1.790146528 | H123: 0.3098534718 | I123: =IF(H123="","",IF(H123<-2,0,IF(H123>1,0,VLOOKUP(H123,'8'!$A$2:$B$1503,2,TRUE)))) -> 1
A124: Train | B124: 18177 | C124: milk | D124: 30 | E124: 1.5 | F124: 1 | G124: 1.07144268 | H124: -0.0714426804 | I124: =IF(H124="","",IF(H124<-2,0,IF(H124>1,0,VLOOKUP(H124,'8'!$A$2:$B$1503,2,TRUE)))) -> 1
A125: Train | B125: 18177 | C125: milk | D125: 30 | E125: 1.75 | F125: 0.3 | G125: 0.4892936147 | H125: -0.1892936147 | I125: =IF(H125="","",IF(H125<-2,0,IF(H125>1,0,VLOOKUP(H125,'8'!$A$2:$B$1503,2,TRUE)))) -> 1
A126: Train | B126: 18177 | C126: milk | D126: 30 | E126: 2 | F126: 0.1 | G126: 0.2028304964 | H126: -0.1028304964 | I126: =IF(H126="","",IF(H126<-2,0,IF(H126>1,0,VLOOKUP(H126,'8'!$A$2:$B$1503,2,TRUE)))) -> 1
A127: Test | B127: 18177 | C127: milk | D127: 30 | E127: 2.25 | F127: -0.01 | G127: 0.06031875637 | H127: -2.01 | I127: =IF(H127="","",IF(H127<-2,0,IF(H127>1,0,VLOOKUP(H127,'8'!$A$2:$B$1503,2,TRUE)))) -> 0
A128: Train | B128: 18177 | C128: milk | D128: 30 | E128: 2.5 | F128: -0.01 | G128: -0.00426496984 | H128: -0.00573503016 | I128: =IF(H128="","",IF(H128<-2,0,IF(H128>1,0,VLOOKUP(H128,'8'!$A$2:$B$1503,2,TRUE)))) -> 1
A129: Train | B129: 18177 | C129: milk | D129: 30 | E129: 2.75 | F129: -0.01 | G129: -0.009820001246 | H129: -0.0001799987537 | I129: =IF(H129="","",IF(H129<-2,0,IF(H129>1,0,VLOOKUP(H129,'8'!$A$2:$B$1503,2,TRUE)))) -> 1
A130: Train | B130: 18177 | C130: milk | D130: 30 | E130: 3 | F130: -0.01 | G130: -0.009997372424 | H130: =IF(F130="","",IF(F130*G130<0,-2.01,F130-G130)) -> -2.627575933e-06 | I130: =IF(H130="","",IF(H130<-2,0,IF(H130>1,0,VLOOKUP(H130,'8'!$A$2:$B$1503,2,TRUE)))) -> 1
A131: Train | B131: 29428 | C131: milk | D131: 30 | E131: 0 | F131: 6.7 | G131: 6.461790773 | H131: 0.2382092271 | I131: =IF(H131="","",IF(H131<-2,0,IF(H131>1,0,VLOOKUP(H131,'8'!$A$2:$B$1503,2,TRUE)))) -> 1
A132: Train | B132: 29428 | C132: milk | D132: 30 | E132: 0.25 | F132: 6.2 | G132: 6.016294902 | H132: 0.1837050979 | I132: =IF(H132="","",IF(H132<-2,0,IF(H132>1,0,VLOOKUP(H132,'8'!$A$2:$B$1503,2,TRUE)))) -> 1
A133: Train | B133: 29428 | C133: milk | D133: 30 | E133: 0.5 | F133: 5.3 | G133: 5.219519325 | H133: 0.08048067519 | I133: =IF(H133="","",IF(H133<-2,0,IF(H133>1,0,VLOOKUP(H133,'8'!$A$2:$B$1503,2,TRUE)))) -> 1
A134: Train | B134: 29428 | C134: milk | D134: 30 | E134: 0.75 | F134: 3.9 | G134: 4.260839696 | H134: -0.3608396961 | I134: =IF(H134="","",IF(H134<-2,0,IF(H134>1,0,VLOOKUP(H134,'8'!$A$2:$B$1503,2,TRUE)))) -> 1
A135: Test | B135: 29428 | C135: milk | D135: 30 | E135: 1 | F135: 2 | G135: 2.041181135 | H135: -0.04118113529 | I135: =IF(H135="","",IF(H135<-2,0,IF(H135>1,0,VLOOKUP(H135,'8'!$A$2:$B$1503,2,TRUE)))) -> 1
A136: Train | B136: 29428 | C136: milk | D136: 30 | E136: 1.25 | F136: -0.01 | G136: 0.1817756862 | H136: -2.01 | I136: =IF(H136="","",IF(H136<-2,0,IF(H136>1,0,VLOOKUP(H136,'8'!$A$2:$B$1503,2,TRUE)))) -> 0
A137: Train | B137: 29428 | C137: milk | D137: 30 | E137: 1.5 | F137: -0.01 | G137: -0.003939960368 | H137: -0.006060039632 | I137: =IF(H137="","",IF(H137<-2,0,IF(H137>1,0,VLOOKUP(H137,'8'!$A$2:$B$1503,2,TRUE)))) -> 1
A138: Train | B138: 29428 | C138: milk | D138: 30 | E138: 1.75 | F138: -0.01 | G138: -0.009930176475 | H138: -6.982352505e-05 | I138: =IF(H138="","",IF(H138<-2,0,IF(H138>1,0,VLOOKUP(H138,'8'!$A$2:$B$1503,2,TRUE)))) -> 1
A139: Train | B139: 29428 | C139: milk | D139: 30 | E139: 2 | F139: -0.01 | G139: -0.00999971259 | H139: -2.874096612e-07 | I139: =IF(H139="","",IF(H139<-2,0,IF(H139>1,0,VLOOKUP(H139,'8'!$A$2:$B$1503,2,TRUE)))) -> 1
A140: Test | B140: 29428 | C140: milk | D140: 30 | E140: 2.25 | F140: -0.01 | G140: -0.009999999636 | H140: -3.640103687e-10 | I140: =IF(H140="","",IF(H140<-2,0,IF(H140>1,0,VLOOKUP(H140,'8'!$A$2:$B$1503,2,TRUE)))) -> 1
A141: Train | B141: 29428 | C141: milk | D141: 30 | E141: 2.5 | F141: -0.01 | G141: -0.01 | H141: -6.727084167e-14 | I141: =IF(H141="","",IF(H141<-2,0,IF(H141>1,0,VLOOKUP(H141,'8'!$A$2:$B$1503,2,TRUE)))) -> 1
A142: Train | B142: 29428 | C142: milk | D142: 30 | E142: 2.75 | F142: -0.01 | G142: -0.01 | H142: -6.574601974e-16 | I142: =IF(H142="","",IF(H142<-2,0,IF(H142>1,0,VLOOKUP(H142,'8'!$A$2:$B$1503,2,TRUE)))) -> 1
A143: Train | B143: 29428 | C143: milk | D143: 30 | E143: 3 | F143: -0.01 | G143: -0.01 | H143: -2.133709875e-16 | I143: =IF(H143="","",IF(H143<-2,0,IF(H143>1,0,VLOOKUP(H143,'8'!$A$2:$B$1503,2,TRUE)))) -> 1
A144: Train | B144: 18177 | C144: milk | D144: 40 | E144: 0 | F144: 5.8 | G144: 5.047317722 | H144: 0.7526822783 | I144: =IF(H144="","",IF(H144<-2,0,IF(H144>1,0,VLOOKUP(H144,'8'!$A$2:$B$1503,2,TRUE)))) -> 0.496
A145: Train | B145: 18177 | C145: milk | D145: 40 | E145: 0.25 | F145: 4 | G145: 4.006177091 | H145: -0.006177090661 | I145: =IF(H145="","",IF(H145<-2,0,IF(H145>1,0,VLOOKUP(H145,'8'!$A$2:$B$1503,2,TRUE)))) -> 1
A146: Train | B146: 18177 | C146: milk | D146: 40 | E146: 0.5 | F146: 2.7 | G146: 2.66117804 | H146: 0.03882195991 | I146: =IF(H146="","",IF(H146<-2,0,IF(H146>1,0,VLOOKUP(H146,'8'!$A$2:$B$1503,2,TRUE)))) -> 1
A147: Train | B147: 18177 | C147: milk | D147: 40 | E147: 0.75 | F147: 0.8 | G147: 1.513044115 | H147: -0.7130441147 | I147: =IF(H147="","",IF(H147<-2,0,IF(H147>1,0,VLOOKUP(H147,'8'!$A$2:$B$1503,2,TRUE)))) -> 1
A148: Test | B148: 18177 | C148: milk | D148: 40 | E148: 1 | F148: -0.01 | G148: 0.5257788061 | H148: -2.01 | I148: =IF(H148="","",IF(H148<-2,0,IF(H148>1,0,VLOOKUP(H148,'8'!$A$2:$B$1503,2,TRUE)))) -> 0
A149: Train | B149: 18177 | C149: milk | D149: 40 | E149: 1.25 | F149: -0.01 | G149: 0.0328956657 | H149: -2.01 | I149: =IF(H149="","",IF(H149<-2,0,IF(H149>1,0,VLOOKUP(H149,'8'!$A$2:$B$1503,2,TRUE)))) -> 0
A150: Train | B150: 18177 | C150: milk | D150: 40 | E150: 1.5 | F150: -0.01 | G150: -0.008715813679 | H150: -0.001284186321 | I150: =IF(H150="","",IF(H150<-2,0,IF(H150>1,0,VLOOKUP(H150,'8'!$A$2:$B$1503,2,TRUE)))) -> 1
A151: Train | B151: 18177 | C151: milk | D151: 40 | E151: 1.75 | F151: -0.01 | G151: -0.009985441654 | H151: -1.455834592e-05 | I151: =IF(H151="","",IF(H151<-2,0,IF(H151>1,0,VLOOKUP(H151,'8'!$A$2:$B$1503,2,TRUE)))) -> 1
A152: Train | B152: 18177 | C152: milk | D152: 40 | E152: 2 | F152: -0.01 | G152: -0.009999940352 | H152: -5.964834026e-08 | I152: =IF(H152="","",IF(H152<-2,0,IF(H152>1,0,VLOOKUP(H152,'8'!$A$2:$B$1503,2,TRUE)))) -> 1
A153: Test | B153: 18177 | C153: milk | D153: 40 | E153: 2.25 | F153: -0.01 | G153: -0.009999999925 | H153: -7.544697332e-11 | I153: =IF(H153="","",IF(H153<-2,0,IF(H153>1,0,VLOOKUP(H153,'8'!$A$2:$B$1503,2,TRUE)))) -> 1
A154: Train | B154: 18177 | C154: milk | D154: 40 | E154: 2.5 | F154: -0.01 | G154: -0.01 | H154: -1.398013649e-14 | I154: =IF(H154="","",IF(H154<-2,0,IF(H154>1,0,VLOOKUP(H154,'8'!$A$2:$B$1503,2,TRUE)))) -> 1
A155: Train | B155: 18177 | C155: milk | D155: 40 | E155: 2.75 | F155: -0.01 | G155: -0.01 | H155: -6.574601974e-16 | I155: =IF(H155="","",IF(H155<-2,0,IF(H155>1,0,VLOOKUP(H155,'8'!$A$2:$B$1503,2,TRUE)))) -> 1
A156: Train | B156: 18177 | C156: milk | D156: 40 | E156: 3 | F156: -0.01 | G156: -0.01 | H156: -2.133709875e-16 | I156: =IF(H156="","",IF(H156<-2,0,IF(H156>1,0,VLOOKUP(H156,'8'!$A$2:$B$1503,2,TRUE)))) -> 1
A157: Train | B157: 29428 | C157: milk | D157: 40 | E157: 0 | F157: 6.7 | G157: 5.777660746 | H157: 0.9223392537 | I157: =IF(H157="","",IF(H157<-2,0,IF(H157>1,0,VLOOKUP(H157,'8'!$A$2:$B$1503,2,TRUE)))) -> 0.156
A158: Train | B158: 29428 | C158: milk | D158: 40 | E158: 0.25 | F158: 4.6 | G158: 4.367595979 | H158: 0.2324040209 | I158: =IF(H158="","",IF(H158<-2,0,IF(H158>1,0,VLOOKUP(H158,'8'!$A$2:$B$1503,2,TRUE)))) -> 1
A159: Train | B159: 29428 | C159: milk | D159: 40 | E159: 0.5 | F159: 2.2 | G159: 2.485355772 | H159: -0.2853557721 | I159: =IF(H159="","",IF(H159<-2,0,IF(H159>1,0,VLOOKUP(H159,'8'!$A$2:$B$1503,2,TRUE)))) -> 1
A160: Train | B160: 29428 | C160: milk | D160: 40 | E160: 0.75 | F160: 0.3 | G160: 1.090947649 | H160: -0.790947649 | I160: =IF(H160="","",IF(H160<-2,0,IF(H160>1,0,VLOOKUP(H160,'8'!$A$2:$B$1503,2,TRUE)))) -> 1
A161: Test | B161: 29428 | C161: milk | D161: 40 | E161: 1 | F161: -0.01 | G161: 0.2787610829 | H161: -2.01 | I161: =IF(H161="","",IF(H161<-2,0,IF(H161>1,0,VLOOKUP(H161,'8'!$A$2:$B$1503,2,TRUE)))) -> 0
A162: Train | B162: 29428 | C162: milk | D162: 40 | E162: 1.25 | F162: -0.01 | G162: 0.008748734861 | H162: -2.01 | I162: =IF(H162="","",IF(H162<-2,0,IF(H162>1,0,VLOOKUP(H162,'8'!$A$2:$B$1503,2,TRUE)))) -> 0
A163: Train | B163: 29428 | C163: milk | D163: 40 | E163: 1.5 | F163: -0.01 | G163: -0.009487490873 | H163: -0.0005125091272 | I163: =IF(H163="","",IF(H163<-2,0,IF(H163>1,0,VLOOKUP(H163,'8'!$A$2:$B$1503,2,TRUE)))) -> 1
A164: Train | B164: 29428 | C164: milk | D164: 40 | E164: 1.75 | F164: -0.01 | G164: -0.009994360024 | H164: -5.639975548e-06 | I164: =IF(H164="","",IF(H164<-2,0,IF(H164>1,0,VLOOKUP(H164,'8'!$A$2:$B$1503,2,TRUE)))) -> 1
A165: Train | B165: 29428 | C165: milk | D165: 40 | E165: 2 | F165: -0.01 | G165: -0.009999977093 | H165: -2.290724032e-08 | I165: =IF(H165="","",IF(H165<-2,0,IF(H165>1,0,VLOOKUP(H165,'8'!$A$2:$B$1503,2,TRUE)))) -> 1
A166: Test | B166: 29428 | C166: milk | D166: 40 | E166: 2.25 | F166: -0.01 | G166: -0.009999999971 | H166: -2.890287142e-11 | I166: =IF(H166="","",IF(H166<-2,0,IF(H166>1,0,VLOOKUP(H166,'8'!$A$2:$B$1503,2,TRUE)))) -> 1
A167: Train | B167: 29428 | C167: milk | D167: 40 | E167: 2.5 | F167: -0.01 | G167: -0.01 | H167: -5.542441506e-15 | I167: =IF(H167="","",IF(H167<-2,0,IF(H167>1,0,VLOOKUP(H167,'8'!$A$2:$B$1503,2,TRUE)))) -> 1
A168: Train | B168: 29428 | C168: milk | D168: 40 | E168: 2.75 | F168: -0.01 | G168: -0.01 | H168: -6.574601974e-16 | I168: =IF(H168="","",IF(H168<-2,0,IF(H168>1,0,VLOOKUP(H168,'8'!$A$2:$B$1503,2,TRUE)))) -> 1
A169: Train | B169: 29428 | C169: milk | D169: 40 | E169: 3 | F169: -0.01 | G169: -0.01 | H169: -2.133709875e-16 | I169: =IF(H169="","",IF(H169<-2,0,IF(H169>1,0,VLOOKUP(H169,'8'!$A$2:$B$1503,2,TRUE)))) -> 1
A170: Train | B170: 18177 | C170: beef | D170: -20 | E170: 0 | F170: 5.7 | G170: 5.7 | H170: 0 | I170: =IF(H170="","",IF(H170<-2,0,IF(H170>1,0,VLOOKUP(H170,'8'!$A$2:$B$1503,2,TRUE)))) -> 1
A171: Train | B171: 18177 | C171: beef | D171: -20 | E171: 3 | F171: 5.4 | G171: 5.4 | H171: 0 | I171: =IF(H171="","",IF(H171<-2,0,IF(H171>1,0,VLOOKUP(H171,'8'!$A$2:$B$1503,2,TRUE)))) -> 1
A172: Train | B172: 18177 | C172: beef | D172: -20 | E172: 6 | F172: 5.2 | G172: 5.2 | H172: 0 | I172: =IF(H172="","",IF(H172<-2,0,IF(H172>1,0,VLOOKUP(H172,'8'!$A$2:$B$1503,2,TRUE)))) -> 1
A173: Test | B173: 18177 | C173: beef | D173: -20 | E173: 9 | F173: 4.7 | G173: 4.75 | H173: -0.05 | I173: =IF(H173="","",IF(H173<-2,0,IF(H173>1,0,VLOOKUP(H173,'8'!$A$2:$B$1503,2,TRUE)))) -> 1
A174: Train | B174: 18177 | C174: beef | D174: -20 | E174: 12 | F174: 4.3 | G174: 4.3 | H174: 0 | I174: =IF(H174="","",IF(H174<-2,0,IF(H174>1,0,VLOOKUP(H174,'8'!$A$2:$B$1503,2,TRUE)))) -> 1
A175: Train | B175: 18177 | C175: beef | D175: -20 | E175: 15 | F175: 3.7 | G175: 3.7 | H175: 0 | I175: =IF(H175="","",IF(H175<-2,0,IF(H175>1,0,VLOOKUP(H175,'8'!$A$2:$B$1503,2,TRUE)))) -> 1
A176: Train | B176: 18177 | C176: beef | D176: -20 | E176: 18 | F176: 2.9 | G176: 2.9 | H176: 0 | I176: =IF(H176="","",IF(H176<-2,0,IF(H176>1,0,VLOOKUP(H176,'8'!$A$2:$B$1503,2,TRUE)))) -> 1
A177: Test | B177: 18177 | C177: beef | D177: -20 | E177: 21 | F177: 2.6 | G177: 2.6 | H177: 0 | I177: =IF(H177="","",IF(H177<-2,0,IF(H177>1,0,VLOOKUP(H177,'8'!$A$2:$B$1503,2,TRUE)))) -> 1
A178: Train | B178: 18177 | C178: beef | D178: -20 | E178: 24 | F178: 2.3 | G178: 2.3 | H178: 0 | I178: =IF(H178="","",IF(H178<-2,0,IF(H178>1,0,VLOOKUP(H178,'8'!$A$2:$B$1503,2,TRUE)))) -> 1
A179: Train | B179: 18177 | C179: beef | D179: -20 | E179: 27 | F179: 1.6 | G179: 1.6 | H179: 0 | I179: =IF(H179="","",IF(H179<-2,0,IF(H179>1,0,VLOOKUP(H179,'8'!$A$2:$B$1503,2,TRUE)))) -> 1
A180: Train | B180: 18177 | C180: beef | D180: -20 | E180: 30 | F180: 0.6 | G180: 0.6 | H180: -1.110223025e-16 | I180: =IF(H180="","",IF(H180<-2,0,IF(H180>1,0,VLOOKUP(H180,'8'!$A$2:$B$1503,2,TRUE)))) -> 1
A181: Train | B181: 29428 | C181: beef | D181: -20 | E181: 0 | F181: 6.1 | G181: 6.1 | H181: 0 | I181: =IF(H181="","",IF(H181<-2,0,IF(H181>1,0,VLOOKUP(H181,'8'!$A$2:$B$1503,2,TRUE)))) -> 1
A182: Train | B182: 29428 | C182: beef | D182: -20 | E182: 3 | F182: 5.1 | G182: 5.1 | H182: 0 | I182: =IF(H182="","",IF(H182<-2,0,IF(H182>1,0,VLOOKUP(H182,'8'!$A$2:$B$1503,2,TRUE)))) -> 1
A183: Train | B183: 29428 | C183: beef | D183: -20 | E183: 6 | F183: 4.5 | G183: 4.5 | H183: 0 | I183: =IF(H183="","",IF(H183<-2,0,IF(H183>1,0,VLOOKUP(H183,'8'!$A$2:$B$1503,2,TRUE)))) -> 1
A184: Test | B184: 29428 | C184: beef | D184: -20 | E184: 9 | F184: 4.2 | G184: 4.25 | H184: -0.05 | I184: =IF(H184="","",IF(H184<-2,0,IF(H184>1,0,VLOOKUP(H184,'8'!$A$2:$B$1503,2,TRUE)))) -> 1
A185: Train | B185: 29428 | C185: beef | D185: -20 | E185: 12 | F185: 4 | G185: 4 | H185: 0 | I185: =IF(H185="","",IF(H185<-2,0,IF(H185>1,0,VLOOKUP(H185,'8'!$A$2:$B$1503,2,TRUE)))) -> 1
A186: Train | B186: 29428 | C186: beef | D186: -20 | E186: 15 | F186: 3.5 | G186: 3.5 | H186: 0 | I186: =IF(H186="","",IF(H186<-2,0,IF(H186>1,0,VLOOKUP(H186,'8'!$A$2:$B$1503,2,TRUE)))) -> 1
A187: Train | B187: 29428 | C187: beef | D187: -20 | E187: 18 | F187: 3.3 | G187: 3.3 | H187: 0 | I187: =IF(H187="","",IF(H187<-2,0,IF(H187>1,0,VLOOKUP(H187,'8'!$A$2:$B$1503,2,TRUE)))) -> 1
A188: Test | B188: 29428 | C188: beef | D188: -20 | E188: 21 | F188: 2.8 | G188: 2.7 | H188: 0.1 | I188: =IF(H188="","",IF(H188<-2,0,IF(H188>1,0,VLOOKUP(H188,'8'!$A$2:$B$1503,2,TRUE)))) -> 1
A189: Train | B189: 29428 | C189: beef | D189: -20 | E189: 24 | F189: 2.1 | G189: 2.1 | H189: 0 | I189: =IF(H189="","",IF(H189<-2,0,IF(H189>1,0,VLOOKUP(H189,'8'!$A$2:$B$1503,2,TRUE)))) -> 1
A190: Train | B190: 29428 | C190: beef | D190: -20 | E190: 27 | F190: 2 | G190: 2 | H190: 0 | I190: =IF(H190="","",IF(H190<-2,0,IF(H190>1,0,VLOOKUP(H190,'8'!$A$2:$B$1503,2,TRUE)))) -> 1
A191: Train | B191: 29428 | C191: beef | D191: -20 | E191: 30 | F191: 1.6 | G191: 1.6 | H191: 0 | I191: =IF(H191="","",IF(H191<-2,0,IF(H191>1,0,VLOOKUP(H191,'8'!$A$2:$B$1503,2,TRUE)))) -> 1
A192: Train | B192: 18177 | C192: beef | D192: 1 | E192: 0 | F192: 6.2 | G192: 6.199992389 | H192: 7.61140172e-06 | I192: =IF(H192="","",IF(H192<-2,0,IF(H192>1,0,VLOOKUP(H192,'8'!$A$2:$B$1503,2,TRUE)))) -> 1
A193: Train | B193: 18177 | C193: beef | D193: 1 | E193: 1 | F193: 6 | G193: 5.999996194 | H193: 3.805556032e-06 | I193: =IF(H193="","",IF(H193<-2,0,IF(H193>1,0,VLOOKUP(H193,'8'!$A$2:$B$1503,2,TRUE)))) -> 1
A194: Train | B194: 18177 | C194: beef | D194: 1 | E194: 2 | F194: 5.7 | G194: 5.700007611 | H194: =IF(F194="","",IF(F194*G194<0,-2.01,F194-G194)) -> -7.611112064e-06 | I194: =IF(H194="","",IF(H194<-2,0,IF(H194>1,0,VLOOKUP(H194,'8'!$A$2:$B$1503,2,TRUE)))) -> 1
A195: Train | B195: 18177 | C195: beef | D195: 1 | E195: 3 | F195: 5.6 | G195: 5.600003806 | H195: -3.80570086e-06 | I195: =IF(H195="","",IF(H195<-2,0,IF(H195>1,0,VLOOKUP(H195,'8'!$A$2:$B$1503,2,TRUE)))) -> 1
A196: Test | B196: 18177 | C196: beef | D196: 1 | E196: 4 | F196: 5.5 | G196: 5.6 | H196: -0.1 | I196: =IF(H196="","",IF(H196<-2,0,IF(H196>1,0,VLOOKUP(H196,'8'!$A$2:$B$1503,2,TRUE)))) -> 1
A197: Train | B197: 18177 | C197: beef | D197: 1 | E197: 5 | F197: 5.6 | G197: 5.599969554 | H197: 3.044560688e-05 | I197: =IF(H197="","",IF(H197<-2,0,IF(H197>1,0,VLOOKUP(H197,'8'!$A$2:$B$1503,2,TRUE)))) -> 1
A198: Train | B198: 18177 | C198: beef | D198: 1 | E198: 6 | F198: 4.8 | G198: 4.800019028 | H198: -1.902778016e-05 | I198: =IF(H198="","",IF(H198<-2,0,IF(H198>1,0,VLOOKUP(H198,'8'!$A$2:$B$1503,2,TRUE)))) -> 1
A199: Train | B199: 18177 | C199: beef | D199: 1 | E199: 7 | F199: 4.5 | G199: 4.5 | H199: 0 | I199: =IF(H199="","",IF(H199<-2,0,IF(H199>1,0,VLOOKUP(H199,'8'!$A$2:$B$1503,2,TRUE)))) -> 1
A200: Train | B200: 18177 | C200: beef | D200: 1 | E200: 8 | F200: 4.2 | G200: 4.200011417 | H200: -1.141710258e-05 | I200: =IF(H200="","",IF(H200<-2,0,IF(H200>1,0,VLOOKUP(H200,'8'!$A$2:$B$1503,2,TRUE)))) -> 1
... 457 more rows

Sheet 3
A1: Q | B1: A | C1: Decision Tree for Dependent Data | X1: yes
A2: 1 | B2: yes | C2: Were the data used to develop the model? | X2: no
A3: 2 | B3: no | C3: Were the independent variables evenly spaced?
A4: 3 | B4: no | C4: Was there a minimum of four prediction cases per combination of independent variables?
A5: 4 | B5: yes | C5: Did all combinations of independent variables have the same number of prediction cases?
A6: 5 | B6: yes | C6: Was the overall pAPZ ≥ 0.70?
A7: 6 | B7: yes | C7: Was pAPZ for all individual levels of independent variables ≥ 0.70?
A8: 7 | B8: yes | C8: Was a single pAPZ ≥ 0.70 for every three consecutive combinations of the independent variables?
A9: 8 | B9: =IF(CONCATENATE(B2,B3,B4,B5,B6,B7,B8)="yesyesyesyesyesyesyes","yes","no") -> no | C9: Was the model validated for dependent data?
A10: pAPZ | B10: Temp
A11: Other | B11: -20 | C11: 1 | D11: 10 | E11: 20 | F11: 30 | G11: 40 | H11: Avg
A12: milk | B12: 1 | C12: 1 | D12: 1 | E12: 0.8461538462 | F12: 0.8846153846 | G12: 0.7818461538 | H12: 0.9245714286
A13: 18177 | B13: 1 | C13: 1 | D13: 1 | E13: 0.8461538462 | F13: 0.9230769231 | G13: 0.7944615385 | H13: 0.9324761905
A14: 29428 | B14: 1 | C14: 1 | D14: 1 | E14: 0.8461538462 | F14: 0.8461538462 | G14: 0.7692307692 | H14: 0.9166666667
A15: beef | B15: 1 | C15: 1 | D15: 1 | E15: 1 | F15: 1 | G15: 0.9896923077 | H15: 0.998325
A16: 18177 | B16: 1 | C16: 1 | D16: 1 | E16: 1 | F16: 1 | G16: 1 | H16: 1
A17: 29428 | B17: 1 | C17: 1 | D17: 1 | E17: 1 | F17: 1 | G17: 0.9793846154 | H17: 0.99665
A18: Avg | B18: 1 | C18: 1 | D18: 1 | E18: 0.9230769231 | F18: 0.9423076923 | G18: 0.8857692308 | H18: 0.9605487805

Sheet 4
A1: Tag | B1: Species | C1: Strain | D1: Food | E1: Temp | F1: Time | G1: Obs | H1: Pred | I1: Residual | J1: APZ
I2: =IF(G2="","",IF(G2*H2<0,-2.01,G2-H2)) ->  | J2: =IF(I2="","",IF(I2<=-2,0,IF(I2>1,0,VLOOKUP(I2,'8'!$A$2:$B$1503,2,TRUE)))) -> 
I3: =IF(G3="","",IF(G3*H3<0,-2.01,G3-H3)) ->  | J3: =IF(I3="","",IF(I3<=-2,0,IF(I3>1,0,VLOOKUP(I3,'8'!$A$2:$B$1503,2,TRUE)))) -> 
J4: =IF(I4="","",IF(I4<=-2,0,IF(I4>1,0,VLOOKUP(I4,'8'!$A$2:$B$1503,2,TRUE)))) -> 
J5: =IF(I5="","",IF(I5<=-2,0,IF(I5>1,0,VLOOKUP(I5,'8'!$A$2:$B$1503,2,TRUE)))) -> 
J6: =IF(I6="","",IF(I6<=-2,0,IF(I6>1,0,VLOOKUP(I6,'8'!$A$2:$B$1503,2,TRUE)))) -> 
J7: =IF(I7="","",IF(I7<=-2,0,IF(I7>1,0,VLOOKUP(I7,'8'!$A$2:$B$1503,2,TRUE)))) -> 
J8: =IF(I8="","",IF(I8<=-2,0,IF(I8>1,0,VLOOKUP(I8,'8'!$A$2:$B$1503,2,TRUE)))) -> 
J9: =IF(I9="","",IF(I9<=-2,0,IF(I9>1,0,VLOOKUP(I9,'8'!$A$2:$B$1503,2,TRUE)))) -> 
J10: =IF(I10="","",IF(I10<=-2,0,IF(I10>1,0,VLOOKUP(I10,'8'!$A$2:$B$1503,2,TRUE)))) -> 
J11: =IF(I11="","",IF(I11<=-2,0,IF(I11>1,0,VLOOKUP(I11,'8'!$A$2:$B$1503,2,TRUE)))) -> 
J12: =IF(I12="","",IF(I12<=-2,0,IF(I12>1,0,VLOOKUP(I12,'8'!$A$2:$B$1503,2,TRUE)))) -> 
J13: =IF(I13="","",IF(I13<=-2,0,IF(I13>1,0,VLOOKUP(I13,'8'!$A$2:$B$1503,2,TRUE)))) -> 
J14: =IF(I14="","",IF(I14<=-2,0,IF(I14>1,0,VLOOKUP(I14,'8'!$A$2:$B$1503,2,TRUE)))) -> 
J15: =IF(I15="","",IF(I15<=-2,0,IF(I15>1,0,VLOOKUP(I15,'8'!$A$2:$B$1503,2,TRUE)))) -> 
J16: =IF(I16="","",IF(I16<=-2,0,IF(I16>1,0,VLOOKUP(I16,'8'!$A$2:$B$1503,2,TRUE)))) -> 
J17: =IF(I17="","",IF(I17<=-2,0,IF(I17>1,0,VLOOKUP(I17,'8'!$A$2:$B$1503,2,TRUE)))) -> 
J18: =IF(I18="","",IF(I18<=-2,0,IF(I18>1,0,VLOOKUP(I18,'8'!$A$2:$B$1503,2,TRUE)))) -> 
J19: =IF(I19="","",IF(I19<=-2,0,IF(I19>1,0,VLOOKUP(I19,'8'!$A$2:$B$1503,2,TRUE)))) -> 
J20: =IF(I20="","",IF(I20<=-2,0,IF(I20>1,0,VLOOKUP(I20,'8'!$A$2:$B$1503,2,TRUE)))) -> 
J21: =IF(I21="","",IF(I21<=-2,0,IF(I21>1,0,VLOOKUP(I21,'8'!$A$2:$B$1503,2,TRUE)))) -> 
J22: =IF(I22="","",IF(I22<=-2,0,IF(I22>1,0,VLOOKUP(I22,'8'!$A$2:$B$1503,2,TRUE)))) -> 
J23: =IF(I23="","",IF(I23<=-2,0,IF(I23>1,0,VLOOKUP(I23,'8'!$A$2:$B$1503,2,TRUE)))) -> 
J24: =IF(I24="","",IF(I24<=-2,0,IF(I24>1,0,VLOOKUP(I24,'8'!$A$2:$B$1503,2,TRUE)))) -> 
J25: =IF(I25="","",IF(I25<=-2,0,IF(I25>1,0,VLOOKUP(I25,'8'!$A$2:$B$1503,2,TRUE)))) -> 
J26: =IF(I26="","",IF(I26<=-2,0,IF(I26>1,0,VLOOKUP(I26,'8'!$A$2:$B$1503,2,TRUE)))) -> 
J27: =IF(I27="","",IF(I27<=-2,0,IF(I27>1,0,VLOOKUP(I27,'8'!$A$2:$B$1503,2,TRUE)))) -> 
J28: =IF(I28="","",IF(I28<=-2,0,IF(I28>1,0,VLOOKUP(I28,'8'!$A$2:$B$1503,2,TRUE)))) -> 
J29: =IF(I29="","",IF(I29<=-2,0,IF(I29>1,0,VLOOKUP(I29,'8'!$A$2:$B$1503,2,TRUE)))) -> 
J30: =IF(I30="","",IF(I30<=-2,0,IF(I30>1,0,VLOOKUP(I30,'8'!$A$2:$B$1503,2,TRUE)))) -> 
J31: =IF(I31="","",IF(I31<=-2,0,IF(I31>1,0,VLOOKUP(I31,'8'!$A$2:$B$1503,2,TRUE)))) -> 
J32: =IF(I32="","",IF(I32<=-2,0,IF(I32>1,0,VLOOKUP(I32,'8'!$A$2:$B$1503,2,TRUE)))) -> 
J33: =IF(I33="","",IF(I33<=-2,0,IF(I33>1,0,VLOOKUP(I33,'8'!$A$2:$B$1503,2,TRUE)))) -> 
J34: =IF(I34="","",IF(I34<=-2,0,IF(I34>1,0,VLOOKUP(I34,'8'!$A$2:$B$1503,2,TRUE)))) -> 
J35: =IF(I35="","",IF(I35<=-2,0,IF(I35>1,0,VLOOKUP(I35,'8'!$A$2:$B$1503,2,TRUE)))) -> 
J36: =IF(I36="","",IF(I36<=-2,0,IF(I36>1,0,VLOOKUP(I36,'8'!$A$2:$B$1503,2,TRUE)))) -> 
J37: =IF(I37="","",IF(I37<=-2,0,IF(I37>1,0,VLOOKUP(I37,'8'!$A$2:$B$1503,2,TRUE)))) -> 
J38: =IF(I38="","",IF(I38<=-2,0,IF(I38>1,0,VLOOKUP(I38,'8'!$A$2:$B$1503,2,TRUE)))) -> 
J39: =IF(I39="","",IF(I39<=-2,0,IF(I39>1,0,VLOOKUP(I39,'8'!$A$2:$B$1503,2,TRUE)))) -> 
J40: =IF(I40="","",IF(I40<=-2,0,IF(I40>1,0,VLOOKUP(I40,'8'!$A$2:$B$1503,2,TRUE)))) -> 
J41: =IF(I41="","",IF(I41<=-2,0,IF(I41>1,0,VLOOKUP(I41,'8'!$A$2:$B$1503,2,TRUE)))) -> 
J42: =IF(I42="","",IF(I42<=-2,0,IF(I42>1,0,VLOOKUP(I42,'8'!$A$2:$B$1503,2,TRUE)))) -> 
J43: =IF(I43="","",IF(I43<=-2,0,IF(I43>1,0,VLOOKUP(I43,'8'!$A$2:$B$1503,2,TRUE)))) -> 
J44: =IF(I44="","",IF(I44<=-2,0,IF(I44>1,0,VLOOKUP(I44,'8'!$A$2:$B$1503,2,TRUE)))) -> 
J45: =IF(I45="","",IF(I45<=-2,0,IF(I45>1,0,VLOOKUP(I45,'8'!$A$2:$B$1503,2,TRUE)))) -> 
J46: =IF(I46="","",IF(I46<=-2,0,IF(I46>1,0,VLOOKUP(I46,'8'!$A$2:$B$1503,2,TRUE)))) -> 
J47: =IF(I47="","",IF(I47<=-2,0,IF(I47>1,0,VLOOKUP(I47,'8'!$A$2:$B$1503,2,TRUE)))) -> 
J48: =IF(I48="","",IF(I48<=-2,0,IF(I48>1,0,VLOOKUP(I48,'8'!$A$2:$B$1503,2,TRUE)))) -> 
J49: =IF(I49="","",IF(I49<=-2,0,IF(I49>1,0,VLOOKUP(I49,'8'!$A$2:$B$1503,2,TRUE)))) -> 
J50: =IF(I50="","",IF(I50<=-2,0,IF(I50>1,0,VLOOKUP(I50,'8'!$A$2:$B$1503,2,TRUE)))) -> 
J51: =IF(I51="","",IF(I51<=-2,0,IF(I51>1,0,VLOOKUP(I51,'8'!$A$2:$B$1503,2,TRUE)))) -> 
J52: =IF(I52="","",IF(I52<=-2,0,IF(I52>1,0,VLOOKUP(I52,'8'!$A$2:$B$1503,2,TRUE)))) -> 
J53: =IF(I53="","",IF(I53<=-2,0,IF(I53>1,0,VLOOKUP(I53,'8'!$A$2:$B$1503,2,TRUE)))) -> 
J54: =IF(I54="","",IF(I54<=-2,0,IF(I54>1,0,VLOOKUP(I54,'8'!$A$2:$B$1503,2,TRUE)))) -> 
J55: =IF(I55="","",IF(I55<=-2,0,IF(I55>1,0,VLOOKUP(I55,'8'!$A$2:$B$1503,2,TRUE)))) -> 
J56: =IF(I56="","",IF(I56<=-2,0,IF(I56>1,0,VLOOKUP(I56,'8'!$A$2:$B$1503,2,TRUE)))) -> 
J57: =IF(I57="","",IF(I57<=-2,0,IF(I57>1,0,VLOOKUP(I57,'8'!$A$2:$B$1503,2,TRUE)))) -> 
J58: =IF(I58="","",IF(I58<=-2,0,IF(I58>1,0,VLOOKUP(I58,'8'!$A$2:$B$1503,2,TRUE)))) -> 
J59: =IF(I59="","",IF(I59<=-2,0,IF(I59>1,0,VLOOKUP(I59,'8'!$A$2:$B$1503,2,TRUE)))) -> 
J60: =IF(I60="","",IF(I60<=-2,0,IF(I60>1,0,VLOOKUP(I60,'8'!$A$2:$B$1503,2,TRUE)))) -> 
J61: =IF(I61="","",IF(I61<=-2,0,IF(I61>1,0,VLOOKUP(I61,'8'!$A$2:$B$1503,2,TRUE)))) -> 
J62: =IF(I62="","",IF(I62<=-2,0,IF(I62>1,0,VLOOKUP(I62,'8'!$A$2:$B$1503,2,TRUE)))) -> 
J63: =IF(I63="","",IF(I63<=-2,0,IF(I63>1,0,VLOOKUP(I63,'8'!$A$2:$B$1503,2,TRUE)))) -> 
J64: =IF(I64="","",IF(I64<=-2,0,IF(I64>1,0,VLOOKUP(I64,'8'!$A$2:$B$1503,2,TRUE)))) -> 
J65: =IF(I65="","",IF(I65<=-2,0,IF(I65>1,0,VLOOKUP(I65,'8'!$A$2:$B$1503,2,TRUE)))) -> 
J66: =IF(I66="","",IF(I66<=-2,0,IF(I66>1,0,VLOOKUP(I66,'8'!$A$2:$B$1503,2,TRUE)))) -> 
I67: =IF(G67="","",IF(G67*H67<0,-2.01,G67-H67)) ->  | J67: =IF(I67="","",IF(I67<=-2,0,IF(I67>1,0,VLOOKUP(I67,'8'!$A$2:$B$1503,2,TRUE)))) -> 
J68: =IF(I68="","",IF(I68<=-2,0,IF(I68>1,0,VLOOKUP(I68,'8'!$A$2:$B$1503,2,TRUE)))) -> 
J69: =IF(I69="","",IF(I69<=-2,0,IF(I69>1,0,VLOOKUP(I69,'8'!$A$2:$B$1503,2,TRUE)))) -> 
J70: =IF(I70="","",IF(I70<=-2,0,IF(I70>1,0,VLOOKUP(I70,'8'!$A$2:$B$1503,2,TRUE)))) -> 
J71: =IF(I71="","",IF(I71<=-2,0,IF(I71>1,0,VLOOKUP(I71,'8'!$A$2:$B$1503,2,TRUE)))) -> 
J72: =IF(I72="","",IF(I72<=-2,0,IF(I72>1,0,VLOOKUP(I72,'8'!$A$2:$B$1503,2,TRUE)))) -> 
J73: =IF(I73="","",IF(I73<=-2,0,IF(I73>1,0,VLOOKUP(I73,'8'!$A$2:$B$1503,2,TRUE)))) -> 
J74: =IF(I74="","",IF(I74<=-2,0,IF(I74>1,0,VLOOKUP(I74,'8'!$A$2:$B$1503,2,TRUE)))) -> 
J75: =IF(I75="","",IF(I75<=-2,0,IF(I75>1,0,VLOOKUP(I75,'8'!$A$2:$B$1503,2,TRUE)))) -> 
J76: =IF(I76="","",IF(I76<=-2,0,IF(I76>1,0,VLOOKUP(I76,'8'!$A$2:$B$1503,2,TRUE)))) -> 
J77: =IF(I77="","",IF(I77<=-2,0,IF(I77>1,0,VLOOKUP(I77,'8'!$A$2:$B$1503,2,TRUE)))) -> 
J78: =IF(I78="","",IF(I78<=-2,0,IF(I78>1,0,VLOOKUP(I78,'8'!$A$2:$B$1503,2,TRUE)))) -> 
J79: =IF(I79="","",IF(I79<=-2,0,IF(I79>1,0,VLOOKUP(I79,'8'!$A$2:$B$1503,2,TRUE)))) -> 
J80: =IF(I80="","",IF(I80<=-2,0,IF(I80>1,0,VLOOKUP(I80,'8'!$A$2:$B$1503,2,TRUE)))) -> 
J81: =IF(I81="","",IF(I81<=-2,0,IF(I81>1,0,VLOOKUP(I81,'8'!$A$2:$B$1503,2,TRUE)))) -> 
J82: =IF(I82="","",IF(I82<=-2,0,IF(I82>1,0,VLOOKUP(I82,'8'!$A$2:$B$1503,2,TRUE)))) -> 
J83: =IF(I83="","",IF(I83<=-2,0,IF(I83>1,0,VLOOKUP(I83,'8'!$A$2:$B$1503,2,TRUE)))) -> 
J84: =IF(I84="","",IF(I84<=-2,0,IF(I84>1,0,VLOOKUP(I84,'8'!$A$2:$B$1503,2,TRUE)))) -> 
J85: =IF(I85="","",IF(I85<=-2,0,IF(I85>1,0,VLOOKUP(I85,'8'!$A$2:$B$1503,2,TRUE)))) -> 
J86: =IF(I86="","",IF(I86<=-2,0,IF(I86>1,0,VLOOKUP(I86,'8'!$A$2:$B$1503,2,TRUE)))) -> 
J87: =IF(I87="","",IF(I87<=-2,0,IF(I87>1,0,VLOOKUP(I87,'8'!$A$2:$B$1503,2,TRUE)))) -> 
J88: =IF(I88="","",IF(I88<=-2,0,IF(I88>1,0,VLOOKUP(I88,'8'!$A$2:$B$1503,2,TRUE)))) -> 
J89: =IF(I89="","",IF(I89<=-2,0,IF(I89>1,0,VLOOKUP(I89,'8'!$A$2:$B$1503,2,TRUE)))) -> 
J90: =IF(I90="","",IF(I90<=-2,0,IF(I90>1,0,VLOOKUP(I90,'8'!$A$2:$B$1503,2,TRUE)))) -> 
J91: =IF(I91="","",IF(I91<=-2,0,IF(I91>1,0,VLOOKUP(I91,'8'!$A$2:$B$1503,2,TRUE)))) -> 
J92: =IF(I92="","",IF(I92<=-2,0,IF(I92>1,0,VLOOKUP(I92,'8'!$A$2:$B$1503,2,TRUE)))) -> 
J93: =IF(I93="","",IF(I93<=-2,0,IF(I93>1,0,VLOOKUP(I93,'8'!$A$2:$B$1503,2,TRUE)))) -> 
J94: =IF(I94="","",IF(I94<=-2,0,IF(I94>1,0,VLOOKUP(I94,'8'!$A$2:$B$1503,2,TRUE)))) -> 
J95: =IF(I95="","",IF(I95<=-2,0,IF(I95>1,0,VLOOKUP(I95,'8'!$A$2:$B$1503,2,TRUE)))) -> 
J96: =IF(I96="","",IF(I96<=-2,0,IF(I96>1,0,VLOOKUP(I96,'8'!$A$2:$B$1503,2,TRUE)))) -> 
J97: =IF(I97="","",IF(I97<=-2,0,IF(I97>1,0,VLOOKUP(I97,'8'!$A$2:$B$1503,2,TRUE)))) -> 
J98: =IF(I98="","",IF(I98<=-2,0,IF(I98>1,0,VLOOKUP(I98,'8'!$A$2:$B$1503,2,TRUE)))) -> 
J99: =IF(I99="","",IF(I99<=-2,0,IF(I99>1,0,VLOOKUP(I99,'8'!$A$2:$B$1503,2,TRUE)))) -> 
J100: =IF(I100="","",IF(I100<=-2,0,IF(I100>1,0,VLOOKUP(I100,'8'!$A$2:$B$1503,2,TRUE)))) -> 
J101: =IF(I101="","",IF(I101<=-2,0,IF(I101>1,0,VLOOKUP(I101,'8'!$A$2:$B$1503,2,TRUE)))) -> 
J102: =IF(I102="","",IF(I102<=-2,0,IF(I102>1,0,VLOOKUP(I102,'8'!$A$2:$B$1503,2,TRUE)))) -> 
J103: =IF(I103="","",IF(I103<=-2,0,IF(I103>1,0,VLOOKUP(I103,'8'!$A$2:$B$1503,2,TRUE)))) -> 
J104: =IF(I104="","",IF(I104<=-2,0,IF(I104>1,0,VLOOKUP(I104,'8'!$A$2:$B$1503,2,TRUE)))) -> 
J105: =IF(I105="","",IF(I105<=-2,0,IF(I105>1,0,VLOOKUP(I105,'8'!$A$2:$B$1503,2,TRUE)))) -> 
J106: =IF(I106="","",IF(I106<=-2,0,IF(I106>1,0,VLOOKUP(I106,'8'!$A$2:$B$1503,2,TRUE)))) -> 
J107: =IF(I107="","",IF(I107<=-2,0,IF(I107>1,0,VLOOKUP(I107,'8'!$A$2:$B$1503,2,TRUE)))) -> 
J108: =IF(I108="","",IF(I108<=-2,0,IF(I108>1,0,VLOOKUP(I108,'8'!$A$2:$B$1503,2,TRUE)))) -> 
J109: =IF(I109="","",IF(I109<=-2,0,IF(I109>1,0,VLOOKUP(I109,'8'!$A$2:$B$1503,2,TRUE)))) -> 
J110: =IF(I110="","",IF(I110<=-2,0,IF(I110>1,0,VLOOKUP(I110,'8'!$A$2:$B$1503,2,TRUE)))) -> 
J111: =IF(I111="","",IF(I111<=-2,0,IF(I111>1,0,VLOOKUP(I111,'8'!$A$2:$B$1503,2,TRUE)))) -> 
J112: =IF(I112="","",IF(I112<=-2,0,IF(I112>1,0,VLOOKUP(I112,'8'!$A$2:$B$1503,2,TRUE)))) -> 
J113: =IF(I113="","",IF(I113<=-2,0,IF(I113>1,0,VLOOKUP(I113,'8'!$A$2:$B$1503,2,TRUE)))) -> 
J114: =IF(I114="","",IF(I114<=-2,0,IF(I114>1,0,VLOOKUP(I114,'8'!$A$2:$B$1503,2,TRUE)))) -> 
J115: =IF(I115="","",IF(I115<=-2,0,IF(I115>1,0,VLOOKUP(I115,'8'!$A$2:$B$1503,2,TRUE)))) -> 
J116: =IF(I116="","",IF(I116<=-2,0,IF(I116>1,0,VLOOKUP(I116,'8'!$A$2:$B$1503,2,TRUE)))) -> 
J117: =IF(I117="","",IF(I117<=-2,0,IF(I117>1,0,VLOOKUP(I117,'8'!$A$2:$B$1503,2,TRUE)))) -> 
J118: =IF(I118="","",IF(I118<=-2,0,IF(I118>1,0,VLOOKUP(I118,'8'!$A$2:$B$1503,2,TRUE)))) -> 
J119: =IF(I119="","",IF(I119<=-2,0,IF(I119>1,0,VLOOKUP(I119,'8'!$A$2:$B$1503,2,TRUE)))) -> 
J120: =IF(I120="","",IF(I120<=-2,0,IF(I120>1,0,VLOOKUP(I120,'8'!$A$2:$B$1503,2,TRUE)))) -> 
J121: =IF(I121="","",IF(I121<=-2,0,IF(I121>1,0,VLOOKUP(I121,'8'!$A$2:$B$1503,2,TRUE)))) -> 
J122: =IF(I122="","",IF(I122<=-2,0,IF(I122>1,0,VLOOKUP(I122,'8'!$A$2:$B$1503,2,TRUE)))) -> 
J123: =IF(I123="","",IF(I123<=-2,0,IF(I123>1,0,VLOOKUP(I123,'8'!$A$2:$B$1503,2,TRUE)))) -> 
J124: =IF(I124="","",IF(I124<=-2,0,IF(I124>1,0,VLOOKUP(I124,'8'!$A$2:$B$1503,2,TRUE)))) -> 
J125: =IF(I125="","",IF(I125<=-2,0,IF(I125>1,0,VLOOKUP(I125,'8'!$A$2:$B$1503,2,TRUE)))) -> 
J126: =IF(I126="","",IF(I126<=-2,0,IF(I126>1,0,VLOOKUP(I126,'8'!$A$2:$B$1503,2,TRUE)))) -> 
J127: =IF(I127="","",IF(I127<=-2,0,IF(I127>1,0,VLOOKUP(I127,'8'!$A$2:$B$1503,2,TRUE)))) -> 
J128: =IF(I128="","",IF(I128<=-2,0,IF(I128>1,0,VLOOKUP(I128,'8'!$A$2:$B$1503,2,TRUE)))) -> 
J129: =IF(I129="","",IF(I129<=-2,0,IF(I129>1,0,VLOOKUP(I129,'8'!$A$2:$B$1503,2,TRUE)))) -> 
J130: =IF(I130="","",IF(I130<=-2,0,IF(I130>1,0,VLOOKUP(I130,'8'!$A$2:$B$1503,2,TRUE)))) -> 
I131: =IF(G131="","",IF(G131*H131<0,-2.01,G131-H131)) ->  | J131: =IF(I131="","",IF(I131<=-2,0,IF(I131>1,0,VLOOKUP(I131,'8'!$A$2:$B$1503,2,TRUE)))) -> 
J132: =IF(I132="","",IF(I132<=-2,0,IF(I132>1,0,VLOOKUP(I132,'8'!$A$2:$B$1503,2,TRUE)))) -> 
J133: =IF(I133="","",IF(I133<=-2,0,IF(I133>1,0,VLOOKUP(I133,'8'!$A$2:$B$1503,2,TRUE)))) -> 
J134: =IF(I134="","",IF(I134<=-2,0,IF(I134>1,0,VLOOKUP(I134,'8'!$A$2:$B$1503,2,TRUE)))) -> 
J135: =IF(I135="","",IF(I135<=-2,0,IF(I135>1,0,VLOOKUP(I135,'8'!$A$2:$B$1503,2,TRUE)))) -> 
J136: =IF(I136="","",IF(I136<=-2,0,IF(I136>1,0,VLOOKUP(I136,'8'!$A$2:$B$1503,2,TRUE)))) -> 
J137: =IF(I137="","",IF(I137<=-2,0,IF(I137>1,0,VLOOKUP(I137,'8'!$A$2:$B$1503,2,TRUE)))) -> 
J138: =IF(I138="","",IF(I138<=-2,0,IF(I138>1,0,VLOOKUP(I138,'8'!$A$2:$B$1503,2,TRUE)))) -> 
J139: =IF(I139="","",IF(I139<=-2,0,IF(I139>1,0,VLOOKUP(I139,'8'!$A$2:$B$1503,2,TRUE)))) -> 
J140: =IF(I140="","",IF(I140<=-2,0,IF(I140>1,0,VLOOKUP(I140,'8'!$A$2:$B$1503,2,TRUE)))) -> 
J141: =IF(I141="","",IF(I141<=-2,0,IF(I141>1,0,VLOOKUP(I141,'8'!$A$2:$B$1503,2,TRUE)))) -> 
J142: =IF(I142="","",IF(I142<=-2,0,IF(I142>1,0,VLOOKUP(I142,'8'!$A$2:$B$1503,2,TRUE)))) -> 
J143: =IF(I143="","",IF(I143<=-2,0,IF(I143>1,0,VLOOKUP(I143,'8'!$A$2:$B$1503,2,TRUE)))) -> 
J144: =IF(I144="","",IF(I144<=-2,0,IF(I144>1,0,VLOOKUP(I144,'8'!$A$2:$B$1503,2,TRUE)))) -> 
J145: =IF(I145="","",IF(I145<=-2,0,IF(I145>1,0,VLOOKUP(I145,'8'!$A$2:$B$1503,2,TRUE)))) -> 
J146: =IF(I146="","",IF(I146<=-2,0,IF(I146>1,0,VLOOKUP(I146,'8'!$A$2:$B$1503,2,TRUE)))) -> 
J147: =IF(I147="","",IF(I147<=-2,0,IF(I147>1,0,VLOOKUP(I147,'8'!$A$2:$B$1503,2,TRUE)))) -> 
J148: =IF(I148="","",IF(I148<=-2,0,IF(I148>1,0,VLOOKUP(I148,'8'!$A$2:$B$1503,2,TRUE)))) -> 
J149: =IF(I149="","",IF(I149<=-2,0,IF(I149>1,0,VLOOKUP(I149,'8'!$A$2:$B$1503,2,TRUE)))) -> 
J150: =IF(I150="","",IF(I150<=-2,0,IF(I150>1,0,VLOOKUP(I150,'8'!$A$2:$B$1503,2,TRUE)))) -> 
J151: =IF(I151="","",IF(I151<=-2,0,IF(I151>1,0,VLOOKUP(I151,'8'!$A$2:$B$1503,2,TRUE)))) -> 
J152: =IF(I152="","",IF(I152<=-2,0,IF(I152>1,0,VLOOKUP(I152,'8'!$A$2:$B$1503,2,TRUE)))) -> 
J153: =IF(I153="","",IF(I153<=-2,0,IF(I153>1,0,VLOOKUP(I153,'8'!$A$2:$B$1503,2,TRUE)))) -> 
J154: =IF(I154="","",IF(I154<=-2,0,IF(I154>1,0,VLOOKUP(I154,'8'!$A$2:$B$1503,2,TRUE)))) -> 
J155: =IF(I155="","",IF(I155<=-2,0,IF(I155>1,0,VLOOKUP(I155,'8'!$A$2:$B$1503,2,TRUE)))) -> 
J156: =IF(I156="","",IF(I156<=-2,0,IF(I156>1,0,VLOOKUP(I156,'8'!$A$2:$B$1503,2,TRUE)))) -> 
J157: =IF(I157="","",IF(I157<=-2,0,IF(I157>1,0,VLOOKUP(I157,'8'!$A$2:$B$1503,2,TRUE)))) -> 
J158: =IF(I158="","",IF(I158<=-2,0,IF(I158>1,0,VLOOKUP(I158,'8'!$A$2:$B$1503,2,TRUE)))) -> 
J159: =IF(I159="","",IF(I159<=-2,0,IF(I159>1,0,VLOOKUP(I159,'8'!$A$2:$B$1503,2,TRUE)))) -> 
J160: =IF(I160="","",IF(I160<=-2,0,IF(I160>1,0,VLOOKUP(I160,'8'!$A$2:$B$1503,2,TRUE)))) -> 
J161: =IF(I161="","",IF(I161<=-2,0,IF(I161>1,0,VLOOKUP(I161,'8'!$A$2:$B$1503,2,TRUE)))) -> 
J162: =IF(I162="","",IF(I162<=-2,0,IF(I162>1,0,VLOOKUP(I162,'8'!$A$2:$B$1503,2,TRUE)))) -> 
J163: =IF(I163="","",IF(I163<=-2,0,IF(I163>1,0,VLOOKUP(I163,'8'!$A$2:$B$1503,2,TRUE)))) -> 
J164: =IF(I164="","",IF(I164<=-2,0,IF(I164>1,0,VLOOKUP(I164,'8'!$A$2:$B$1503,2,TRUE)))) -> 
J165: =IF(I165="","",IF(I165<=-2,0,IF(I165>1,0,VLOOKUP(I165,'8'!$A$2:$B$1503,2,TRUE)))) -> 
J166: =IF(I166="","",IF(I166<=-2,0,IF(I166>1,0,VLOOKUP(I166,'8'!$A$2:$B$1503,2,TRUE)))) -> 
J167: =IF(I167="","",IF(I167<=-2,0,IF(I167>1,0,VLOOKUP(I167,'8'!$A$2:$B$1503,2,TRUE)))) -> 
J168: =IF(I168="","",IF(I168<=-2,0,IF(I168>1,0,VLOOKUP(I168,'8'!$A$2:$B$1503,2,TRUE)))) -> 
J169: =IF(I169="","",IF(I169<=-2,0,IF(I169>1,0,VLOOKUP(I169,'8'!$A$2:$B$1503,2,TRUE)))) -> 
J170: =IF(I170="","",IF(I170<=-2,0,IF(I170>1,0,VLOOKUP(I170,'8'!$A$2:$B$1503,2,TRUE)))) -> 
J171: =IF(I171="","",IF(I171<=-2,0,IF(I171>1,0,VLOOKUP(I171,'8'!$A$2:$B$1503,2,TRUE)))) -> 
J172: =IF(I172="","",IF(I172<=-2,0,IF(I172>1,0,VLOOKUP(I172,'8'!$A$2:$B$1503,2,TRUE)))) -> 
J173: =IF(I173="","",IF(I173<=-2,0,IF(I173>1,0,VLOOKUP(I173,'8'!$A$2:$B$1503,2,TRUE)))) -> 
J174: =IF(I174="","",IF(I174<=-2,0,IF(I174>1,0,VLOOKUP(I174,'8'!$A$2:$B$1503,2,TRUE)))) -> 
J175: =IF(I175="","",IF(I175<=-2,0,IF(I175>1,0,VLOOKUP(I175,'8'!$A$2:$B$1503,2,TRUE)))) -> 
J176: =IF(I176="","",IF(I176<=-2,0,IF(I176>1,0,VLOOKUP(I176,'8'!$A$2:$B$1503,2,TRUE)))) -> 
J177: =IF(I177="","",IF(I177<=-2,0,IF(I177>1,0,VLOOKUP(I177,'8'!$A$2:$B$1503,2,TRUE)))) -> 
J178: =IF(I178="","",IF(I178<=-2,0,IF(I178>1,0,VLOOKUP(I178,'8'!$A$2:$B$1503,2,TRUE)))) -> 
J179: =IF(I179="","",IF(I179<=-2,0,IF(I179>1,0,VLOOKUP(I179,'8'!$A$2:$B$1503,2,TRUE)))) -> 
J180: =IF(I180="","",IF(I180<=-2,0,IF(I180>1,0,VLOOKUP(I180,'8'!$A$2:$B$1503,2,TRUE)))) -> 
J181: =IF(I181="","",IF(I181<=-2,0,IF(I181>1,0,VLOOKUP(I181,'8'!$A$2:$B$1503,2,TRUE)))) -> 
J182: =IF(I182="","",IF(I182<=-2,0,IF(I182>1,0,VLOOKUP(I182,'8'!$A$2:$B$1503,2,TRUE)))) -> 
J183: =IF(I183="","",IF(I183<=-2,0,IF(I183>1,0,VLOOKUP(I183,'8'!$A$2:$B$1503,2,TRUE)))) -> 
J184: =IF(I184="","",IF(I184<=-2,0,IF(I184>1,0,VLOOKUP(I184,'8'!$A$2:$B$1503,2,TRUE)))) -> 
J185: =IF(I185="","",IF(I185<=-2,0,IF(I185>1,0,VLOOKUP(I185,'8'!$A$2:$B$1503,2,TRUE)))) -> 
J186: =IF(I186="","",IF(I186<=-2,0,IF(I186>1,0,VLOOKUP(I186,'8'!$A$2:$B$1503,2,TRUE)))) -> 
J187: =IF(I187="","",IF(I187<=-2,0,IF(I187>1,0,VLOOKUP(I187,'8'!$A$2:$B$1503,2,TRUE)))) -> 
J188: =IF(I188="","",IF(I188<=-2,0,IF(I188>1,0,VLOOKUP(I188,'8'!$A$2:$B$1503,2,TRUE)))) -> 
J189: =IF(I189="","",IF(I189<=-2,0,IF(I189>1,0,VLOOKUP(I189,'8'!$A$2:$B$1503,2,TRUE)))) -> 
J190: =IF(I190="","",IF(I190<=-2,0,IF(I190>1,0,VLOOKUP(I190,'8'!$A$2:$B$1503,2,TRUE)))) -> 
J191: =IF(I191="","",IF(I191<=-2,0,IF(I191>1,0,VLOOKUP(I191,'8'!$A$2:$B$1503,2,TRUE)))) -> 
J192: =IF(I192="","",IF(I192<=-2,0,IF(I192>1,0,VLOOKUP(I192,'8'!$A$2:$B$1503,2,TRUE)))) -> 
J193: =IF(I193="","",IF(I193<=-2,0,IF(I193>1,0,VLOOKUP(I193,'8'!$A$2:$B$1503,2,TRUE)))) -> 
J194: =IF(I194="","",IF(I194<=-2,0,IF(I194>1,0,VLOOKUP(I194,'8'!$A$2:$B$1503,2,TRUE)))) -> 
I195: =IF(G195="","",IF(G195*H195<0,-2.01,G195-H195)) ->  | J195: =IF(I195="","",IF(I195<=-2,0,IF(I195>1,0,VLOOKUP(I195,'8'!$A$2:$B$1503,2,TRUE)))) -> 
J196: =IF(I196="","",IF(I196<=-2,0,IF(I196>1,0,VLOOKUP(I196,'8'!$A$2:$B$1503,2,TRUE)))) -> 
J197: =IF(I197="","",IF(I197<=-2,0,IF(I197>1,0,VLOOKUP(I197,'8'!$A$2:$B$1503,2,TRUE)))) -> 
J198: =IF(I198="","",IF(I198<=-2,0,IF(I198>1,0,VLOOKUP(I198,'8'!$A$2:$B$1503,2,TRUE)))) -> 
J199: =IF(I199="","",IF(I199<=-2,0,IF(I199>1,0,VLOOKUP(I199,'8'!$A$2:$B$1503,2,TRUE)))) -> 
J200: =IF(I200="","",IF(I200<=-2,0,IF(I200>1,0,VLOOKUP(I200,'8'!$A$2:$B$1503,2,TRUE)))) -> 
... 457 more rows

Sheet 5
A1: Q | B1: A | C1: Decision Tree for Interpolation
A2: 1 | B2: ='3'!B9 -> no | C2: Was the model validated for dependent data?
A3: 2 | B3: yes | C3: Were the data independent?
A4: 3 | B4: yes | C4: Were the data collected using the same methods as dependent data?
A5: 4 | B5: no | C5: Were the independent variables at values intermediate to those used in model development?
A6: 5 | B6: yes | C6: Was there a minimum of two prediction cases per combination of independent variables?
A7: 6 | B7: no | C7: Did all combinations of independent variables have the same number of prediction cases?
A8: 7 | B8: yes | C8: Was the overall pAPZ ≥ 0.70?
A9: 8 | B9: yes | C9: Was pAPZ for all individual levels of independent variables ≥ 0.70?
A10: 9 | B10: yes | C10: Was a single pAPZ ≥ 0.70 for every three consecutive combinations of the independent variables?
A11: 10 | B11: =IF(CONCATENATE(B2,B3,B4,B5,B6,B7,B8,B9,B10)="yesyesyesyesyesyesyesyesyes","yes","no") -> no | C11: Was the model validated for interpolation?
A12: Average of APZ | B12: Time
A13: Temp | B13: Average
A14: Average
A36: Instructions
A37: 1. Update the pivot table
B38: a. Click on A10 → Pivot Table → Analyze → Refresh → Filter for Rows → Select All → Deselect Blank → Filter for Columns → Select All → Deselect Blank.
B39: b. Click Field List, Σ Values Pull Down Menu → Value Field Settings → Select Count.
A40: 2. Answer (A) questions (Q) 2 to 6 for test data criteria in the Decision Tree by selecting "yes" or "no" from the pull-down menus.
A41: 3. Change Σ Value from Count to Average
B42: a. Click Field List, Σ Values Pull Down Menu → Value Field Settings → Select Average.
B43: b. Click on any pAPZ value in the pivot table and then click on APZ Macro button to highlight pAPZ that are < 0.7.
A44: 4. Answer (A) questions (Q) 7 to9 for model performance criteria in the Decision Tree by selecting "yes" or "no" from the pull-down menu.

Sheet 6
A1: Tag | B1: Strain | C1: Food | D1: Temp | E1: Time | F1: Obs | G1: Pred | H1: Residual | I1: APZ
A2: Train | B2: 18177 | C2: milk | D2: -20 | E2: 0 | F2: 7 | G2: 5.7 | H2: =IF(F2="","",IF(F2*G2<0,-2.01,F2-G2)) -> 1.3 | I2: =IF(H2="","",IF(H2<-2,0,IF(H2>1,0,VLOOKUP(H2,'8'!$A$2:$B$1503,2,TRUE)))) -> 0
A3: Train | B3: 18177 | C3: milk | D3: -20 | E3: 1 | F3: 6.6 | G3: 5.7 | H3: 0.9 | I3: =IF(H3="","",IF(H3<-2,0,IF(H3>1,0,VLOOKUP(H3,'8'!$A$2:$B$1503,2,TRUE)))) -> 0.202
A4: Train | B4: 18177 | C4: milk | D4: -20 | E4: 2 | F4: 5.6 | G4: 5.4 | H4: 0.2 | I4: =IF(H4="","",IF(H4<-2,0,IF(H4>1,0,VLOOKUP(H4,'8'!$A$2:$B$1503,2,TRUE)))) -> 1
A5: Train | B5: 18177 | C5: milk | D5: -20 | E5: 3 | F5: 4.7 | G5: 5.4 | H5: -0.7 | I5: =IF(H5="","",IF(H5<-2,0,IF(H5>1,0,VLOOKUP(H5,'8'!$A$2:$B$1503,2,TRUE)))) -> 1
A6: Test | B6: 18177 | C6: milk | D6: -20 | E6: 4 | F6: 3.8 | G6: 5.4 | H6: -1.6 | I6: =IF(H6="","",IF(H6<-2,0,IF(H6>1,0,VLOOKUP(H6,'8'!$A$2:$B$1503,2,TRUE)))) -> 0.399
A7: Train | B7: 18177 | C7: milk | D7: -20 | E7: 5 | F7: 2.6 | G7: 5.2 | H7: -2.6 | I7: =IF(H7="","",IF(H7<-2,0,IF(H7>1,0,VLOOKUP(H7,'8'!$A$2:$B$1503,2,TRUE)))) -> 0
A8: Train | B8: 18177 | C8: milk | D8: -20 | E8: 6 | F8: 1.2 | G8: 5.2 | H8: -4 | I8: =IF(H8="","",IF(H8<-2,0,IF(H8>1,0,VLOOKUP(H8,'8'!$A$2:$B$1503,2,TRUE)))) -> 0
A9: Train | B9: 18177 | C9: milk | D9: -20 | E9: 7 | F9: 0.4 | G9: 5.2 | H9: -4.8 | I9: =IF(H9="","",IF(H9<-2,0,IF(H9>1,0,VLOOKUP(H9,'8'!$A$2:$B$1503,2,TRUE)))) -> 0
A10: Train | B10: 18177 | C10: milk | D10: -20 | E10: 8 | F10: -0.01 | G10: 5.2 | H10: -2.01 | I10: =IF(H10="","",IF(H10<-2,0,IF(H10>1,0,VLOOKUP(H10,'8'!$A$2:$B$1503,2,TRUE)))) -> 0
A11: Test | B11: 18177 | C11: milk | D11: -20 | E11: 9 | F11: -0.01 | G11: 4.75 | H11: -2.01 | I11: =IF(H11="","",IF(H11<-2,0,IF(H11>1,0,VLOOKUP(H11,'8'!$A$2:$B$1503,2,TRUE)))) -> 0
A12: Train | B12: 18177 | C12: milk | D12: -20 | E12: 10 | F12: -0.01 | G12: 4.3 | H12: -2.01 | I12: =IF(H12="","",IF(H12<-2,0,IF(H12>1,0,VLOOKUP(H12,'8'!$A$2:$B$1503,2,TRUE)))) -> 0
A13: Train | B13: 18177 | C13: milk | D13: -20 | E13: 11 | F13: -0.01 | G13: 4.3 | H13: -2.01 | I13: =IF(H13="","",IF(H13<-2,0,IF(H13>1,0,VLOOKUP(H13,'8'!$A$2:$B$1503,2,TRUE)))) -> 0
A14: Train | B14: 18177 | C14: milk | D14: -20 | E14: 12 | F14: -0.01 | G14: 4.3 | H14: -2.01 | I14: =IF(H14="","",IF(H14<-2,0,IF(H14>1,0,VLOOKUP(H14,'8'!$A$2:$B$1503,2,TRUE)))) -> 0
A15: Test | B15: 18177 | C15: milk | D15: -20 | E15: 13 | F15: -0.01 | G15: 4.3 | H15: -2.01 | I15: =IF(H15="","",IF(H15<-2,0,IF(H15>1,0,VLOOKUP(H15,'8'!$A$2:$B$1503,2,TRUE)))) -> 0
A16: Train | B16: 18177 | C16: milk | D16: -20 | E16: 14 | F16: -0.01 | G16: 3.7 | H16: -2.01 | I16: =IF(H16="","",IF(H16<-2,0,IF(H16>1,0,VLOOKUP(H16,'8'!$A$2:$B$1503,2,TRUE)))) -> 0
A17: Train | B17: 29428 | C17: milk | D17: -20 | E17: 0 | F17: 7.5 | G17: 6.1 | H17: 1.4 | I17: =IF(H17="","",IF(H17<-2,0,IF(H17>1,0,VLOOKUP(H17,'8'!$A$2:$B$1503,2,TRUE)))) -> 0
A18: Train | B18: 29428 | C18: milk | D18: -20 | E18: 1 | F18: 6.5 | G18: 6.1 | H18: 0.4 | I18: =IF(H18="","",IF(H18<-2,0,IF(H18>1,0,VLOOKUP(H18,'8'!$A$2:$B$1503,2,TRUE)))) -> 1
A19: Train | B19: 29428 | C19: milk | D19: -20 | E19: 2 | F19: 4.7 | G19: 5.1 | H19: -0.4 | I19: =IF(H19="","",IF(H19<-2,0,IF(H19>1,0,VLOOKUP(H19,'8'!$A$2:$B$1503,2,TRUE)))) -> 1
A20: Train | B20: 29428 | C20: milk | D20: -20 | E20: 3 | F20: 2.5 | G20: 5.1 | H20: -2.6 | I20: =IF(H20="","",IF(H20<-2,0,IF(H20>1,0,VLOOKUP(H20,'8'!$A$2:$B$1503,2,TRUE)))) -> 0
A21: Test | B21: 29428 | C21: milk | D21: -20 | E21: 4 | F21: 1.2 | G21: 5.1 | H21: -3.9 | I21: =IF(H21="","",IF(H21<-2,0,IF(H21>1,0,VLOOKUP(H21,'8'!$A$2:$B$1503,2,TRUE)))) -> 0
A22: Train | B22: 29428 | C22: milk | D22: -20 | E22: 5 | F22: -0.01 | G22: 4.5 | H22: -2.01 | I22: =IF(H22="","",IF(H22<-2,0,IF(H22>1,0,VLOOKUP(H22,'8'!$A$2:$B$1503,2,TRUE)))) -> 0
A23: Train | B23: 29428 | C23: milk | D23: -20 | E23: 6 | F23: -0.01 | G23: 4.5 | H23: -2.01 | I23: =IF(H23="","",IF(H23<-2,0,IF(H23>1,0,VLOOKUP(H23,'8'!$A$2:$B$1503,2,TRUE)))) -> 0
A24: Train | B24: 29428 | C24: milk | D24: -20 | E24: 7 | F24: -0.01 | G24: 4.5 | H24: -2.01 | I24: =IF(H24="","",IF(H24<-2,0,IF(H24>1,0,VLOOKUP(H24,'8'!$A$2:$B$1503,2,TRUE)))) -> 0
A25: Train | B25: 29428 | C25: milk | D25: -20 | E25: 8 | F25: -0.01 | G25: 4.5 | H25: -2.01 | I25: =IF(H25="","",IF(H25<-2,0,IF(H25>1,0,VLOOKUP(H25,'8'!$A$2:$B$1503,2,TRUE)))) -> 0
A26: Test | B26: 29428 | C26: milk | D26: -20 | E26: 9 | F26: -0.01 | G26: 4.25 | H26: -2.01 | I26: =IF(H26="","",IF(H26<-2,0,IF(H26>1,0,VLOOKUP(H26,'8'!$A$2:$B$1503,2,TRUE)))) -> 0
A27: Train | B27: 29428 | C27: milk | D27: -20 | E27: 10 | F27: -0.01 | G27: 4 | H27: -2.01 | I27: =IF(H27="","",IF(H27<-2,0,IF(H27>1,0,VLOOKUP(H27,'8'!$A$2:$B$1503,2,TRUE)))) -> 0
A28: Train | B28: 29428 | C28: milk | D28: -20 | E28: 11 | F28: -0.01 | G28: 4 | H28: -2.01 | I28: =IF(H28="","",IF(H28<-2,0,IF(H28>1,0,VLOOKUP(H28,'8'!$A$2:$B$1503,2,TRUE)))) -> 0
A29: Train | B29: 29428 | C29: milk | D29: -20 | E29: 12 | F29: -0.01 | G29: 4 | H29: -2.01 | I29: =IF(H29="","",IF(H29<-2,0,IF(H29>1,0,VLOOKUP(H29,'8'!$A$2:$B$1503,2,TRUE)))) -> 0
A30: Test | B30: 29428 | C30: milk | D30: -20 | E30: 13 | F30: -0.01 | G30: 4 | H30: -2.01 | I30: =IF(H30="","",IF(H30<-2,0,IF(H30>1,0,VLOOKUP(H30,'8'!$A$2:$B$1503,2,TRUE)))) -> 0
A31: Train | B31: 29428 | C31: milk | D31: -20 | E31: 14 | F31: -0.01 | G31: 3.5 | H31: -2.01 | I31: =IF(H31="","",IF(H31<-2,0,IF(H31>1,0,VLOOKUP(H31,'8'!$A$2:$B$1503,2,TRUE)))) -> 0
A32: Train | B32: 18177 | C32: milk | D32: 1 | E32: 0 | F32: 6.3 | G32: 6.199992389 | H32: 0.1000076114 | I32: =IF(H32="","",IF(H32<-2,0,IF(H32>1,0,VLOOKUP(H32,'8'!$A$2:$B$1503,2,TRUE)))) -> 1
A33: Train | B33: 18177 | C33: milk | D33: 1 | E33: 1 | F33: 6.2 | G33: 5.999996194 | H33: 0.2000038056 | I33: =IF(H33="","",IF(H33<-2,0,IF(H33>1,0,VLOOKUP(H33,'8'!$A$2:$B$1503,2,TRUE)))) -> 1
A34: Train | B34: 18177 | C34: milk | D34: 1 | E34: 2 | F34: 5.8 | G34: 5.700007611 | H34: 0.09999238889 | I34: =IF(H34="","",IF(H34<-2,0,IF(H34>1,0,VLOOKUP(H34,'8'!$A$2:$B$1503,2,TRUE)))) -> 1
A35: Train | B35: 18177 | C35: milk | D35: 1 | E35: 3 | F35: 5 | G35: 5.600003806 | H35: -0.6000038057 | I35: =IF(H35="","",IF(H35<-2,0,IF(H35>1,0,VLOOKUP(H35,'8'!$A$2:$B$1503,2,TRUE)))) -> 1
A36: Test | B36: 18177 | C36: milk | D36: 1 | E36: 4 | F36: 4.8 | G36: 5.6 | H36: -0.8 | I36: =IF(H36="","",IF(H36<-2,0,IF(H36>1,0,VLOOKUP(H36,'8'!$A$2:$B$1503,2,TRUE)))) -> 1
A37: Train | B37: 18177 | C37: milk | D37: 1 | E37: 5 | F37: 4.6 | G37: 5.599969554 | H37: -0.9999695544 | I37: =IF(H37="","",IF(H37<-2,0,IF(H37>1,0,VLOOKUP(H37,'8'!$A$2:$B$1503,2,TRUE)))) -> 1
A38: Train | B38: 18177 | C38: milk | D38: 1 | E38: 6 | F38: 4.3 | G38: 4.800019028 | H38: -0.5000190278 | I38: =IF(H38="","",IF(H38<-2,0,IF(H38>1,0,VLOOKUP(H38,'8'!$A$2:$B$1503,2,TRUE)))) -> 1
A39: Train | B39: 18177 | C39: milk | D39: 1 | E39: 7 | F39: 4.2 | G39: 4.5 | H39: -0.3 | I39: =IF(H39="","",IF(H39<-2,0,IF(H39>1,0,VLOOKUP(H39,'8'!$A$2:$B$1503,2,TRUE)))) -> 1
A40: Train | B40: 18177 | C40: milk | D40: 1 | E40: 8 | F40: 3.7 | G40: 4.200011417 | H40: -0.5000114171 | I40: =IF(H40="","",IF(H40<-2,0,IF(H40>1,0,VLOOKUP(H40,'8'!$A$2:$B$1503,2,TRUE)))) -> 1
A41: Test | B41: 18177 | C41: milk | D41: 1 | E41: 9 | F41: 3.5 | G41: 3.9 | H41: -0.4 | I41: =IF(H41="","",IF(H41<-2,0,IF(H41>1,0,VLOOKUP(H41,'8'!$A$2:$B$1503,2,TRUE)))) -> 1
A42: Train | B42: 18177 | C42: milk | D42: 1 | E42: 10 | F42: 3.2 | G42: 3.6 | H42: -0.4 | I42: =IF(H42="","",IF(H42<-2,0,IF(H42>1,0,VLOOKUP(H42,'8'!$A$2:$B$1503,2,TRUE)))) -> 1
A43: Train | B43: 18177 | C43: milk | D43: 1 | E43: 11 | F43: 3.1 | G43: 3.599984778 | H43: -0.4999847778 | I43: =IF(H43="","",IF(H43<-2,0,IF(H43>1,0,VLOOKUP(H43,'8'!$A$2:$B$1503,2,TRUE)))) -> 1
A44: Train | B44: 18177 | C44: milk | D44: 1 | E44: 12 | F44: 2.9 | G44: 3.200015223 | H44: -0.3000152228 | I44: =IF(H44="","",IF(H44<-2,0,IF(H44>1,0,VLOOKUP(H44,'8'!$A$2:$B$1503,2,TRUE)))) -> 1
A45: Test | B45: 18177 | C45: milk | D45: 1 | E45: 13 | F45: 2.2 | G45: 3.15 | H45: -0.95 | I45: =IF(H45="","",IF(H45<-2,0,IF(H45>1,0,VLOOKUP(H45,'8'!$A$2:$B$1503,2,TRUE)))) -> 1
A46: Train | B46: 18177 | C46: milk | D46: 1 | E46: 14 | F46: 1.8 | G46: 3.1 | H46: -1.3 | I46: =IF(H46="","",IF(H46<-2,0,IF(H46>1,0,VLOOKUP(H46,'8'!$A$2:$B$1503,2,TRUE)))) -> 0.699
A47: Train | B47: 29428 | C47: milk | D47: 1 | E47: 0 | F47: 7.3 | G47: 6.999992389 | H47: 0.3000076114 | I47: =IF(H47="","",IF(H47<-2,0,IF(H47>1,0,VLOOKUP(H47,'8'!$A$2:$B$1503,2,TRUE)))) -> 1
A48: Train | B48: 29428 | C48: milk | D48: 1 | E48: 1 | F48: 7.2 | G48: 6.799996194 | H48: 0.4000038056 | I48: =IF(H48="","",IF(H48<-2,0,IF(H48>1,0,VLOOKUP(H48,'8'!$A$2:$B$1503,2,TRUE)))) -> 1
A49: Train | B49: 29428 | C49: milk | D49: 1 | E49: 2 | F49: 6.7 | G49: 6.500019028 | H49: 0.1999809722 | I49: =IF(H49="","",IF(H49<-2,0,IF(H49>1,0,VLOOKUP(H49,'8'!$A$2:$B$1503,2,TRUE)))) -> 1
A50: Train | B50: 29428 | C50: milk | D50: 1 | E50: 3 | F50: 6.5 | G50: 6.699992389 | H50: -0.1999923886 | I50: =IF(H50="","",IF(H50<-2,0,IF(H50>1,0,VLOOKUP(H50,'8'!$A$2:$B$1503,2,TRUE)))) -> 1
A51: Test | B51: 29428 | C51: milk | D51: 1 | E51: 4 | F51: 6.1 | G51: 6.45 | H51: -0.35 | I51: =IF(H51="","",IF(H51<-2,0,IF(H51>1,0,VLOOKUP(H51,'8'!$A$2:$B$1503,2,TRUE)))) -> 1
A52: Train | B52: 29428 | C52: milk | D52: 1 | E52: 5 | F52: 5.9 | G52: 6.200003806 | H52: -0.3000038057 | I52: =IF(H52="","",IF(H52<-2,0,IF(H52>1,0,VLOOKUP(H52,'8'!$A$2:$B$1503,2,TRUE)))) -> 1
A53: Train | B53: 29428 | C53: milk | D53: 1 | E53: 6 | F53: 5.8 | G53: 6.299977167 | H53: -0.4999771667 | I53: =IF(H53="","",IF(H53<-2,0,IF(H53>1,0,VLOOKUP(H53,'8'!$A$2:$B$1503,2,TRUE)))) -> 1
A54: Train | B54: 29428 | C54: milk | D54: 1 | E54: 7 | F54: 5.5 | G54: 5.800007611 | H54: -0.3000076111 | I54: =IF(H54="","",IF(H54<-2,0,IF(H54>1,0,VLOOKUP(H54,'8'!$A$2:$B$1503,2,TRUE)))) -> 1
A55: Train | B55: 29428 | C55: milk | D55: 1 | E55: 8 | F55: 5.2 | G55: 5.500011417 | H55: -0.3000114171 | I55: =IF(H55="","",IF(H55<-2,0,IF(H55>1,0,VLOOKUP(H55,'8'!$A$2:$B$1503,2,TRUE)))) -> 1
A56: Test | B56: 29428 | C56: milk | D56: 1 | E56: 9 | F56: 5 | G56: 5.25 | H56: -0.25 | I56: =IF(H56="","",IF(H56<-2,0,IF(H56>1,0,VLOOKUP(H56,'8'!$A$2:$B$1503,2,TRUE)))) -> 1
A57: Train | B57: 29428 | C57: milk | D57: 1 | E57: 10 | F57: 4.6 | G57: 5 | H57: -0.4 | I57: =IF(H57="","",IF(H57<-2,0,IF(H57>1,0,VLOOKUP(H57,'8'!$A$2:$B$1503,2,TRUE)))) -> 1
A58: Train | B58: 29428 | C58: milk | D58: 1 | E58: 11 | F58: 4.5 | G58: 5 | H58: -0.5 | I58: =IF(H58="","",IF(H58<-2,0,IF(H58>1,0,VLOOKUP(H58,'8'!$A$2:$B$1503,2,TRUE)))) -> 1
A59: Train | B59: 29428 | C59: milk | D59: 1 | E59: 12 | F59: 3.7 | G59: 5 | H59: -1.3 | I59: =IF(H59="","",IF(H59<-2,0,IF(H59>1,0,VLOOKUP(H59,'8'!$A$2:$B$1503,2,TRUE)))) -> 0.699
A60: Test | B60: 29428 | C60: milk | D60: 1 | E60: 13 | F60: 3.4 | G60: 4.8 | H60: -1.4 | I60: =IF(H60="","",IF(H60<-2,0,IF(H60>1,0,VLOOKUP(H60,'8'!$A$2:$B$1503,2,TRUE)))) -> 0.599
A61: Train | B61: 29428 | C61: milk | D61: 1 | E61: 14 | F61: 3.3 | G61: 4.6 | H61: -1.3 | I61: =IF(H61="","",IF(H61<-2,0,IF(H61>1,0,VLOOKUP(H61,'8'!$A$2:$B$1503,2,TRUE)))) -> 0.699
A62: Train | B62: 18177 | C62: milk | D62: 10 | E62: 0 | F62: 6.4 | G62: 6.099984777 | H62: 0.3000152228 | I62: =IF(H62="","",IF(H62<-2,0,IF(H62>1,0,VLOOKUP(H62,'8'!$A$2:$B$1503,2,TRUE)))) -> 1
A63: Train | B63: 18177 | C63: milk | D63: 10 | E63: 1 | F63: 6.2 | G63: 5.700011417 | H63: 0.4999885833 | I63: =IF(H63="","",IF(H63<-2,0,IF(H63>1,0,VLOOKUP(H63,'8'!$A$2:$B$1503,2,TRUE)))) -> 1
A64: Train | B64: 18177 | C64: milk | D64: 10 | E64: 2 | F64: 6.2 | G64: 5.600011417 | H64: 0.5999885833 | I64: =IF(H64="","",IF(H64<-2,0,IF(H64>1,0,VLOOKUP(H64,'8'!$A$2:$B$1503,2,TRUE)))) -> 0.802
A65: Train | B65: 18177 | C65: milk | D65: 10 | E65: 3 | F65: 6 | G65: 5.799992389 | H65: 0.2000076114 | I65: =IF(H65="","",IF(H65<-2,0,IF(H65>1,0,VLOOKUP(H65,'8'!$A$2:$B$1503,2,TRUE)))) -> 1
A66: Test | B66: 18177 | C66: milk | D66: 10 | E66: 4 | F66: 5.9 | G66: 5.6 | H66: =IF(F66="","",IF(F66*G66<0,-2.01,F66-G66)) -> 0.3 | I66: =IF(H66="","",IF(H66<-2,0,IF(H66>1,0,VLOOKUP(H66,'8'!$A$2:$B$1503,2,TRUE)))) -> 1
A67: Train | B67: 18177 | C67: milk | D67: 10 | E67: 5 | F67: 5.7 | G67: 5.399996194 | H67: 0.3000038057 | I67: =IF(H67="","",IF(H67<-2,0,IF(H67>1,0,VLOOKUP(H67,'8'!$A$2:$B$1503,2,TRUE)))) -> 1
A68: Train | B68: 18177 | C68: milk | D68: 10 | E68: 6 | F68: 5.8 | G68: 5.299988583 | H68: 0.5000114167 | I68: =IF(H68="","",IF(H68<-2,0,IF(H68>1,0,VLOOKUP(H68,'8'!$A$2:$B$1503,2,TRUE)))) -> 1
A69: Train | B69: 18177 | C69: milk | D69: 10 | E69: 7 | F69: 5.6 | G69: 4.900003806 | H69: 0.6999961944 | I69: =IF(H69="","",IF(H69<-2,0,IF(H69>1,0,VLOOKUP(H69,'8'!$A$2:$B$1503,2,TRUE)))) -> 0.602
A70: Train | B70: 18177 | C70: milk | D70: 10 | E70: 8 | F70: 5.5 | G70: 4.600011417 | H70: 0.8999885829 | I70: =IF(H70="","",IF(H70<-2,0,IF(H70>1,0,VLOOKUP(H70,'8'!$A$2:$B$1503,2,TRUE)))) -> 0.202
A71: Test | B71: 18177 | C71: milk | D71: 10 | E71: 9 | F71: 4.4 | G71: 4.4 | H71: 8.881784197e-16 | I71: =IF(H71="","",IF(H71<-2,0,IF(H71>1,0,VLOOKUP(H71,'8'!$A$2:$B$1503,2,TRUE)))) -> 1
A72: Train | B72: 18177 | C72: milk | D72: 10 | E72: 10 | F72: 2.9 | G72: 4.199988583 | H72: -1.299988583 | I72: =IF(H72="","",IF(H72<-2,0,IF(H72>1,0,VLOOKUP(H72,'8'!$A$2:$B$1503,2,TRUE)))) -> 0.7
A73: Train | B73: 18177 | C73: milk | D73: 10 | E73: 11 | F73: 1.9 | G73: 3.9 | H73: -2 | I73: =IF(H73="","",IF(H73<-2,0,IF(H73>1,0,VLOOKUP(H73,'8'!$A$2:$B$1503,2,TRUE)))) -> 
A74: Train | B74: 18177 | C74: milk | D74: 10 | E74: 12 | F74: 1.4 | G74: 3.600011417 | H74: -2.200011417 | I74: =IF(H74="","",IF(H74<-2,0,IF(H74>1,0,VLOOKUP(H74,'8'!$A$2:$B$1503,2,TRUE)))) -> 0
A75: Test | B75: 18177 | C75: milk | D75: 10 | E75: 13 | F75: 0.4 | G75: 3.5 | H75: -3.1 | I75: =IF(H75="","",IF(H75<-2,0,IF(H75>1,0,VLOOKUP(H75,'8'!$A$2:$B$1503,2,TRUE)))) -> 0
A76: Train | B76: 18177 | C76: milk | D76: 10 | E76: 14 | F76: 0.3 | G76: 3.4 | H76: -3.1 | I76: =IF(H76="","",IF(H76<-2,0,IF(H76>1,0,VLOOKUP(H76,'8'!$A$2:$B$1503,2,TRUE)))) -> 0
A77: Train | B77: 29428 | C77: milk | D77: 10 | E77: 0 | F77: 5.8 | G77: 6.499958137 | H77: -0.6999581373 | I77: =IF(H77="","",IF(H77<-2,0,IF(H77>1,0,VLOOKUP(H77,'8'!$A$2:$B$1503,2,TRUE)))) -> 1
A78: Train | B78: 29428 | C78: milk | D78: 10 | E78: 1 | F78: 5.6 | G78: 5.400045667 | H78: 0.1999543333 | I78: =IF(H78="","",IF(H78<-2,0,IF(H78>1,0,VLOOKUP(H78,'8'!$A$2:$B$1503,2,TRUE)))) -> 1
A79: Train | B79: 29428 | C79: milk | D79: 10 | E79: 2 | F79: 5.7 | G79: 5.499984778 | H79: 0.2000152222 | I79: =IF(H79="","",IF(H79<-2,0,IF(H79>1,0,VLOOKUP(H79,'8'!$A$2:$B$1503,2,TRUE)))) -> 1
A80: Train | B80: 29428 | C80: milk | D80: 10 | E80: 3 | F80: 5 | G80: 5.200011417 | H80: -0.2000114171 | I80: =IF(H80="","",IF(H80<-2,0,IF(H80>1,0,VLOOKUP(H80,'8'!$A$2:$B$1503,2,TRUE)))) -> 1
A81: Test | B81: 29428 | C81: milk | D81: 10 | E81: 4 | F81: 5 | G81: 5.1 | H81: -0.1 | I81: =IF(H81="","",IF(H81<-2,0,IF(H81>1,0,VLOOKUP(H81,'8'!$A$2:$B$1503,2,TRUE)))) -> 1
A82: Train | B82: 29428 | C82: milk | D82: 10 | E82: 5 | F82: 4.3 | G82: 4.999988583 | H82: -0.6999885829 | I82: =IF(H82="","",IF(H82<-2,0,IF(H82>1,0,VLOOKUP(H82,'8'!$A$2:$B$1503,2,TRUE)))) -> 1
A83: Train | B83: 29428 | C83: milk | D83: 10 | E83: 6 | F83: 3.9 | G83: 4.700007611 | H83: -0.8000076111 | I83: =IF(H83="","",IF(H83<-2,0,IF(H83>1,0,VLOOKUP(H83,'8'!$A$2:$B$1503,2,TRUE)))) -> 1
A84: Train | B84: 29428 | C84: milk | D84: 10 | E84: 7 | F84: 3.7 | G84: 4.599992389 | H84: -0.8999923889 | I84: =IF(H84="","",IF(H84<-2,0,IF(H84>1,0,VLOOKUP(H84,'8'!$A$2:$B$1503,2,TRUE)))) -> 1
A85: Train | B85: 29428 | C85: milk | D85: 10 | E85: 8 | F85: 3 | G85: 4.300011417 | H85: -1.300011417 | I85: =IF(H85="","",IF(H85<-2,0,IF(H85>1,0,VLOOKUP(H85,'8'!$A$2:$B$1503,2,TRUE)))) -> 0.699
A86: Test | B86: 29428 | C86: milk | D86: 10 | E86: 9 | F86: 2 | G86: 4.05 | H86: -2.05 | I86: =IF(H86="","",IF(H86<-2,0,IF(H86>1,0,VLOOKUP(H86,'8'!$A$2:$B$1503,2,TRUE)))) -> 0
A87: Train | B87: 29428 | C87: milk | D87: 10 | E87: 10 | F87: 1 | G87: 3.800015223 | H87: -2.800015223 | I87: =IF(H87="","",IF(H87<-2,0,IF(H87>1,0,VLOOKUP(H87,'8'!$A$2:$B$1503,2,TRUE)))) -> 0
A88: Train | B88: 29428 | C88: milk | D88: 10 | E88: 11 | F88: 0.2 | G88: 4.199969556 | H88: -3.999969556 | I88: =IF(H88="","",IF(H88<-2,0,IF(H88>1,0,VLOOKUP(H88,'8'!$A$2:$B$1503,2,TRUE)))) -> 0
A89: Train | B89: 29428 | C89: milk | D89: 10 | E89: 12 | F89: -0.01 | G89: 3.800015223 | H89: -2.01 | I89: =IF(H89="","",IF(H89<-2,0,IF(H89>1,0,VLOOKUP(H89,'8'!$A$2:$B$1503,2,TRUE)))) -> 0
A90: Test | B90: 29428 | C90: milk | D90: 10 | E90: 13 | F90: -0.01 | G90: 3.8 | H90: -2.01 | I90: =IF(H90="","",IF(H90<-2,0,IF(H90>1,0,VLOOKUP(H90,'8'!$A$2:$B$1503,2,TRUE)))) -> 0
A91: Train | B91: 29428 | C91: milk | D91: 10 | E91: 14 | F91: -0.01 | G91: 3.8 | H91: -2.01 | I91: =IF(H91="","",IF(H91<-2,0,IF(H91>1,0,VLOOKUP(H91,'8'!$A$2:$B$1503,2,TRUE)))) -> 0
A92: Train | B92: 18177 | C92: milk | D92: 20 | E92: 0 | F92: 5.4 | G92: 6.434083203 | H92: -1.034083203 | I92: =IF(H92="","",IF(H92<-2,0,IF(H92>1,0,VLOOKUP(H92,'8'!$A$2:$B$1503,2,TRUE)))) -> 0.965
A93: Train | B93: 18177 | C93: milk | D93: 20 | E93: 0.25 | F93: 5.5 | G93: 6.40273073 | H93: -0.9027307298 | I93: =IF(H93="","",IF(H93<-2,0,IF(H93>1,0,VLOOKUP(H93,'8'!$A$2:$B$1503,2,TRUE)))) -> 1
A94: Train | B94: 18177 | C94: milk | D94: 20 | E94: 0.5 | F94: 4.7 | G94: 6.423952207 | H94: -1.723952207 | I94: =IF(H94="","",IF(H94<-2,0,IF(H94>1,0,VLOOKUP(H94,'8'!$A$2:$B$1503,2,TRUE)))) -> 0.276
A95: Train | B95: 18177 | C95: milk | D95: 20 | E95: 0.75 | F95: 4 | G95: 6.373245053 | H95: -2.373245053 | I95: =IF(H95="","",IF(H95<-2,0,IF(H95>1,0,VLOOKUP(H95,'8'!$A$2:$B$1503,2,TRUE)))) -> 0
A96: Test | B96: 18177 | C96: milk | D96: 20 | E96: 1 | F96: 3.6 | G96: 5.841680058 | H96: -2.241680058 | I96: =IF(H96="","",IF(H96<-2,0,IF(H96>1,0,VLOOKUP(H96,'8'!$A$2:$B$1503,2,TRUE)))) -> 0
A97: Train | B97: 18177 | C97: milk | D97: 20 | E97: 1.25 | F97: 3.2 | G97: 5.261259982 | H97: -2.061259982 | I97: =IF(H97="","",IF(H97<-2,0,IF(H97>1,0,VLOOKUP(H97,'8'!$A$2:$B$1503,2,TRUE)))) -> 0
A98: Train | B98: 18177 | C98: milk | D98: 20 | E98: 1.5 | F98: 2.4 | G98: 5.026840768 | H98: -2.626840768 | I98: =IF(H98="","",IF(H98<-2,0,IF(H98>1,0,VLOOKUP(H98,'8'!$A$2:$B$1503,2,TRUE)))) -> 0
A99: Train | B99: 18177 | C99: milk | D99: 20 | E99: 1.75 | F99: 2.1 | G99: 4.745380827 | H99: -2.645380827 | I99: =IF(H99="","",IF(H99<-2,0,IF(H99>1,0,VLOOKUP(H99,'8'!$A$2:$B$1503,2,TRUE)))) -> 0
A100: Train | B100: 18177 | C100: milk | D100: 20 | E100: 2 | F100: 1.6 | G100: 4.498427104 | H100: -2.898427104 | I100: =IF(H100="","",IF(H100<-2,0,IF(H100>1,0,VLOOKUP(H100,'8'!$A$2:$B$1503,2,TRUE)))) -> 0
A101: Test | B101: 18177 | C101: milk | D101: 20 | E101: 2.25 | F101: 0.6 | G101: 4.101373171 | H101: -3.501373171 | I101: =IF(H101="","",IF(H101<-2,0,IF(H101>1,0,VLOOKUP(H101,'8'!$A$2:$B$1503,2,TRUE)))) -> 0
A102: Train | B102: 18177 | C102: milk | D102: 20 | E102: 2.5 | F102: 0.2 | G102: 3.726374457 | H102: -3.526374457 | I102: =IF(H102="","",IF(H102<-2,0,IF(H102>1,0,VLOOKUP(H102,'8'!$A$2:$B$1503,2,TRUE)))) -> 0
A103: Train | B103: 18177 | C103: milk | D103: 20 | E103: 2.75 | F103: -0.01 | G103: 3.604138218 | H103: -2.01 | I103: =IF(H103="","",IF(H103<-2,0,IF(H103>1,0,VLOOKUP(H103,'8'!$A$2:$B$1503,2,TRUE)))) -> 0
A104: Train | B104: 18177 | C104: milk | D104: 20 | E104: 3 | F104: -0.01 | G104: 3.576865361 | H104: -2.01 | I104: =IF(H104="","",IF(H104<-2,0,IF(H104>1,0,VLOOKUP(H104,'8'!$A$2:$B$1503,2,TRUE)))) -> 0
A105: Train | B105: 29428 | C105: milk | D105: 20 | E105: 0 | F105: 6 | G105: 6.609100805 | H105: -0.6091008047 | I105: =IF(H105="","",IF(H105<-2,0,IF(H105>1,0,VLOOKUP(H105,'8'!$A$2:$B$1503,2,TRUE)))) -> 1
A106: Train | B106: 29428 | C106: milk | D106: 20 | E106: 0.25 | F106: 5.7 | G106: 6.467869424 | H106: -0.7678694238 | I106: =IF(H106="","",IF(H106<-2,0,IF(H106>1,0,VLOOKUP(H106,'8'!$A$2:$B$1503,2,TRUE)))) -> 1
A107: Train | B107: 29428 | C107: milk | D107: 20 | E107: 0.5 | F107: 5.5 | G107: 6.31664406 | H107: -0.8166440602 | I107: =IF(H107="","",IF(H107<-2,0,IF(H107>1,0,VLOOKUP(H107,'8'!$A$2:$B$1503,2,TRUE)))) -> 1
A108: Train | B108: 29428 | C108: milk | D108: 20 | E108: 0.75 | F108: 4.6 | G108: 6.25382451 | H108: -1.65382451 | I108: =IF(H108="","",IF(H108<-2,0,IF(H108>1,0,VLOOKUP(H108,'8'!$A$2:$B$1503,2,TRUE)))) -> 0.346
A109: Test | B109: 29428 | C109: milk | D109: 20 | E109: 1 | F109: 3.4 | G109: 6.016797249 | H109: -2.616797249 | I109: =IF(H109="","",IF(H109<-2,0,IF(H109>1,0,VLOOKUP(H109,'8'!$A$2:$B$1503,2,TRUE)))) -> 0
A110: Train | B110: 29428 | C110: milk | D110: 20 | E110: 1.25 | F110: 2.6 | G110: 5.66972355 | H110: -3.06972355 | I110: =IF(H110="","",IF(H110<-2,0,IF(H110>1,0,VLOOKUP(H110,'8'!$A$2:$B$1503,2,TRUE)))) -> 0
A111: Train | B111: 29428 | C111: milk | D111: 20 | E111: 1.5 | F111: 2 | G111: 5.43983861 | H111: -3.43983861 | I111: =IF(H111="","",IF(H111<-2,0,IF(H111>1,0,VLOOKUP(H111,'8'!$A$2:$B$1503,2,TRUE)))) -> 0
A112: Train | B112: 29428 | C112: milk | D112: 20 | E112: 1.75 | F112: 1.3 | G112: 5.246906449 | H112: -3.946906449 | I112: =IF(H112="","",IF(H112<-2,0,IF(H112>1,0,VLOOKUP(H112,'8'!$A$2:$B$1503,2,TRUE)))) -> 0
A113: Train | B113: 29428 | C113: milk | D113: 20 | E113: 2 | F113: 0.7 | G113: 5.154836966 | H113: -4.454836966 | I113: =IF(H113="","",IF(H113<-2,0,IF(H113>1,0,VLOOKUP(H113,'8'!$A$2:$B$1503,2,TRUE)))) -> 0
A114: Test | B114: 29428 | C114: milk | D114: 20 | E114: 2.25 | F114: -0.01 | G114: 5.160131914 | H114: -2.01 | I114: =IF(H114="","",IF(H114<-2,0,IF(H114>1,0,VLOOKUP(H114,'8'!$A$2:$B$1503,2,TRUE)))) -> 0
A115: Train | B115: 29428 | C115: milk | D115: 20 | E115: 2.5 | F115: -0.01 | G115: 5.03402428 | H115: -2.01 | I115: =IF(H115="","",IF(H115<-2,0,IF(H115>1,0,VLOOKUP(H115,'8'!$A$2:$B$1503,2,TRUE)))) -> 0
A116: Train | B116: 29428 | C116: milk | D116: 20 | E116: 2.75 | F116: -0.01 | G116: 4.754838865 | H116: -2.01 | I116: =IF(H116="","",IF(H116<-2,0,IF(H116>1,0,VLOOKUP(H116,'8'!$A$2:$B$1503,2,TRUE)))) -> 0
A117: Train | B117: 29428 | C117: milk | D117: 20 | E117: 3 | F117: -0.01 | G117: 4.572014416 | H117: -2.01 | I117: =IF(H117="","",IF(H117<-2,0,IF(H117>1,0,VLOOKUP(H117,'8'!$A$2:$B$1503,2,TRUE)))) -> 0
A118: Train | B118: 18177 | C118: milk | D118: 30 | E118: 0 | F118: 6.2 | G118: 6.691071126 | H118: -0.4910711262 | I118: =IF(H118="","",IF(H118<-2,0,IF(H118>1,0,VLOOKUP(H118,'8'!$A$2:$B$1503,2,TRUE)))) -> 1
A119: Train | B119: 18177 | C119: milk | D119: 30 | E119: 0.25 | F119: 5.8 | G119: 6.599070165 | H119: -0.7990701653 | I119: =IF(H119="","",IF(H119<-2,0,IF(H119>1,0,VLOOKUP(H119,'8'!$A$2:$B$1503,2,TRUE)))) -> 1
A120: Train | B120: 18177 | C120: milk | D120: 30 | E120: 0.5 | F120: 4.9 | G120: 6.55739261 | H120: -1.65739261 | I120: =IF(H120="","",IF(H120<-2,0,IF(H120>1,0,VLOOKUP(H120,'8'!$A$2:$B$1503,2,TRUE)))) -> 0.342
A121: Train | B121: 18177 | C121: milk | D121: 30 | E121: 0.75 | F121: 4.6 | G121: 6.519841174 | H121: -1.919841174 | I121: =IF(H121="","",IF(H121<-2,0,IF(H121>1,0,VLOOKUP(H121,'8'!$A$2:$B$1503,2,TRUE)))) -> 0.08
A122: Test | B122: 18177 | C122: milk | D122: 30 | E122: 1 | F122: 3.1 | G122: 6.326613439 | H122: -3.226613439 | I122: =IF(H122="","",IF(H122<-2,0,IF(H122>1,0,VLOOKUP(H122,'8'!$A$2:$B$1503,2,TRUE)))) -> 0
A123: Train | B123: 18177 | C123: milk | D123: 30 | E123: 1.25 | F123: 2.1 | G123: 5.885160151 | H123: -3.785160151 | I123: =IF(H123="","",IF(H123<-2,0,IF(H123>1,0,VLOOKUP(H123,'8'!$A$2:$B$1503,2,TRUE)))) -> 0
A124: Train | B124: 18177 | C124: milk | D124: 30 | E124: 1.5 | F124: 1 | G124: 5.433693186 | H124: -4.433693186 | I124: =IF(H124="","",IF(H124<-2,0,IF(H124>1,0,VLOOKUP(H124,'8'!$A$2:$B$1503,2,TRUE)))) -> 0
A125: Train | B125: 18177 | C125: milk | D125: 30 | E125: 1.75 | F125: 0.3 | G125: 5.13716592 | H125: -4.83716592 | I125: =IF(H125="","",IF(H125<-2,0,IF(H125>1,0,VLOOKUP(H125,'8'!$A$2:$B$1503,2,TRUE)))) -> 0
A126: Train | B126: 18177 | C126: milk | D126: 30 | E126: 2 | F126: 0.1 | G126: 4.884300249 | H126: -4.784300249 | I126: =IF(H126="","",IF(H126<-2,0,IF(H126>1,0,VLOOKUP(H126,'8'!$A$2:$B$1503,2,TRUE)))) -> 0
A127: Test | B127: 18177 | C127: milk | D127: 30 | E127: 2.25 | F127: -0.01 | G127: 4.462640753 | H127: -2.01 | I127: =IF(H127="","",IF(H127<-2,0,IF(H127>1,0,VLOOKUP(H127,'8'!$A$2:$B$1503,2,TRUE)))) -> 0
A128: Train | B128: 18177 | C128: milk | D128: 30 | E128: 2.5 | F128: -0.01 | G128: 4.076830372 | H128: -2.01 | I128: =IF(H128="","",IF(H128<-2,0,IF(H128>1,0,VLOOKUP(H128,'8'!$A$2:$B$1503,2,TRUE)))) -> 0
A129: Train | B129: 18177 | C129: milk | D129: 30 | E129: 2.75 | F129: -0.01 | G129: 3.878471095 | H129: -2.01 | I129: =IF(H129="","",IF(H129<-2,0,IF(H129>1,0,VLOOKUP(H129,'8'!$A$2:$B$1503,2,TRUE)))) -> 0
A130: Train | B130: 18177 | C130: milk | D130: 30 | E130: 3 | F130: -0.01 | G130: 3.757370002 | H130: =IF(F130="","",IF(F130*G130<0,-2.01,F130-G130)) -> -2.01 | I130: =IF(H130="","",IF(H130<-2,0,IF(H130>1,0,VLOOKUP(H130,'8'!$A$2:$B$1503,2,TRUE)))) -> 0
A131: Train | B131: 29428 | C131: milk | D131: 30 | E131: 0 | F131: 6.7 | G131: 6.490868341 | H131: 0.2091316586 | I131: =IF(H131="","",IF(H131<-2,0,IF(H131>1,0,VLOOKUP(H131,'8'!$A$2:$B$1503,2,TRUE)))) -> 1
A132: Train | B132: 29428 | C132: milk | D132: 30 | E132: 0.25 | F132: 6.2 | G132: 6.395375751 | H132: -0.1953757514 | I132: =IF(H132="","",IF(H132<-2,0,IF(H132>1,0,VLOOKUP(H132,'8'!$A$2:$B$1503,2,TRUE)))) -> 1
A133: Train | B133: 29428 | C133: milk | D133: 30 | E133: 0.5 | F133: 5.3 | G133: 6.330974747 | H133: -1.030974747 | I133: =IF(H133="","",IF(H133<-2,0,IF(H133>1,0,VLOOKUP(H133,'8'!$A$2:$B$1503,2,TRUE)))) -> 0.969
A134: Train | B134: 29428 | C134: milk | D134: 30 | E134: 0.75 | F134: 3.9 | G134: 6.208753498 | H134: -2.308753498 | I134: =IF(H134="","",IF(H134<-2,0,IF(H134>1,0,VLOOKUP(H134,'8'!$A$2:$B$1503,2,TRUE)))) -> 0
A135: Test | B135: 29428 | C135: milk | D135: 30 | E135: 1 | F135: 2 | G135: 5.571597493 | H135: -3.571597493 | I135: =IF(H135="","",IF(H135<-2,0,IF(H135>1,0,VLOOKUP(H135,'8'!$A$2:$B$1503,2,TRUE)))) -> 0
A136: Train | B136: 29428 | C136: milk | D136: 30 | E136: 1.25 | F136: -0.01 | G136: 4.817056901 | H136: -2.01 | I136: =IF(H136="","",IF(H136<-2,0,IF(H136>1,0,VLOOKUP(H136,'8'!$A$2:$B$1503,2,TRUE)))) -> 0
A137: Train | B137: 29428 | C137: milk | D137: 30 | E137: 1.5 | F137: -0.01 | G137: 4.398130465 | H137: -2.01 | I137: =IF(H137="","",IF(H137<-2,0,IF(H137>1,0,VLOOKUP(H137,'8'!$A$2:$B$1503,2,TRUE)))) -> 0
A138: Train | B138: 29428 | C138: milk | D138: 30 | E138: 1.75 | F138: -0.01 | G138: 3.988151544 | H138: -2.01 | I138: =IF(H138="","",IF(H138<-2,0,IF(H138>1,0,VLOOKUP(H138,'8'!$A$2:$B$1503,2,TRUE)))) -> 0
A139: Train | B139: 29428 | C139: milk | D139: 30 | E139: 2 | F139: -0.01 | G139: 3.693577068 | H139: -2.01 | I139: =IF(H139="","",IF(H139<-2,0,IF(H139>1,0,VLOOKUP(H139,'8'!$A$2:$B$1503,2,TRUE)))) -> 0
A140: Test | B140: 29428 | C140: milk | D140: 30 | E140: 2.25 | F140: -0.01 | G140: 3.174355403 | H140: -2.01 | I140: =IF(H140="","",IF(H140<-2,0,IF(H140>1,0,VLOOKUP(H140,'8'!$A$2:$B$1503,2,TRUE)))) -> 0
A141: Train | B141: 29428 | C141: milk | D141: 30 | E141: 2.5 | F141: -0.01 | G141: 2.5828591 | H141: -2.01 | I141: =IF(H141="","",IF(H141<-2,0,IF(H141>1,0,VLOOKUP(H141,'8'!$A$2:$B$1503,2,TRUE)))) -> 0
A142: Train | B142: 29428 | C142: milk | D142: 30 | E142: 2.75 | F142: -0.01 | G142: 2.256444888 | H142: -2.01 | I142: =IF(H142="","",IF(H142<-2,0,IF(H142>1,0,VLOOKUP(H142,'8'!$A$2:$B$1503,2,TRUE)))) -> 0
A143: Train | B143: 29428 | C143: milk | D143: 30 | E143: 3 | F143: -0.01 | G143: 2.072038177 | H143: -2.01 | I143: =IF(H143="","",IF(H143<-2,0,IF(H143>1,0,VLOOKUP(H143,'8'!$A$2:$B$1503,2,TRUE)))) -> 0
A144: Train | B144: 18177 | C144: milk | D144: 40 | E144: 0 | F144: 5.8 | G144: 6.39471969 | H144: -0.5947196895 | I144: =IF(H144="","",IF(H144<-2,0,IF(H144>1,0,VLOOKUP(H144,'8'!$A$2:$B$1503,2,TRUE)))) -> 1
A145: Train | B145: 18177 | C145: milk | D145: 40 | E145: 0.25 | F145: 4 | G145: 6.367871204 | H145: -2.367871204 | I145: =IF(H145="","",IF(H145<-2,0,IF(H145>1,0,VLOOKUP(H145,'8'!$A$2:$B$1503,2,TRUE)))) -> 0
A146: Train | B146: 18177 | C146: milk | D146: 40 | E146: 0.5 | F146: 2.7 | G146: 6.302888495 | H146: -3.602888495 | I146: =IF(H146="","",IF(H146<-2,0,IF(H146>1,0,VLOOKUP(H146,'8'!$A$2:$B$1503,2,TRUE)))) -> 0
A147: Train | B147: 18177 | C147: milk | D147: 40 | E147: 0.75 | F147: 0.8 | G147: 6.22061055 | H147: -5.42061055 | I147: =IF(H147="","",IF(H147<-2,0,IF(H147>1,0,VLOOKUP(H147,'8'!$A$2:$B$1503,2,TRUE)))) -> 0
A148: Test | B148: 18177 | C148: milk | D148: 40 | E148: 1 | F148: -0.01 | G148: 5.972402068 | H148: -2.01 | I148: =IF(H148="","",IF(H148<-2,0,IF(H148>1,0,VLOOKUP(H148,'8'!$A$2:$B$1503,2,TRUE)))) -> 0
A149: Train | B149: 18177 | C149: milk | D149: 40 | E149: 1.25 | F149: -0.01 | G149: 5.619317111 | H149: -2.01 | I149: =IF(H149="","",IF(H149<-2,0,IF(H149>1,0,VLOOKUP(H149,'8'!$A$2:$B$1503,2,TRUE)))) -> 0
A150: Train | B150: 18177 | C150: milk | D150: 40 | E150: 1.5 | F150: -0.01 | G150: 5.304081401 | H150: -2.01 | I150: =IF(H150="","",IF(H150<-2,0,IF(H150>1,0,VLOOKUP(H150,'8'!$A$2:$B$1503,2,TRUE)))) -> 0
A151: Train | B151: 18177 | C151: milk | D151: 40 | E151: 1.75 | F151: -0.01 | G151: 4.980956927 | H151: -2.01 | I151: =IF(H151="","",IF(H151<-2,0,IF(H151>1,0,VLOOKUP(H151,'8'!$A$2:$B$1503,2,TRUE)))) -> 0
A152: Train | B152: 18177 | C152: milk | D152: 40 | E152: 2 | F152: -0.01 | G152: 4.753229657 | H152: -2.01 | I152: =IF(H152="","",IF(H152<-2,0,IF(H152>1,0,VLOOKUP(H152,'8'!$A$2:$B$1503,2,TRUE)))) -> 0
A153: Test | B153: 18177 | C153: milk | D153: 40 | E153: 2.25 | F153: -0.01 | G153: 4.293888703 | H153: -2.01 | I153: =IF(H153="","",IF(H153<-2,0,IF(H153>1,0,VLOOKUP(H153,'8'!$A$2:$B$1503,2,TRUE)))) -> 0
A154: Train | B154: 18177 | C154: milk | D154: 40 | E154: 2.5 | F154: -0.01 | G154: 3.82192185 | H154: -2.01 | I154: =IF(H154="","",IF(H154<-2,0,IF(H154>1,0,VLOOKUP(H154,'8'!$A$2:$B$1503,2,TRUE)))) -> 0
A155: Train | B155: 18177 | C155: milk | D155: 40 | E155: 2.75 | F155: -0.01 | G155: 3.627438901 | H155: -2.01 | I155: =IF(H155="","",IF(H155<-2,0,IF(H155>1,0,VLOOKUP(H155,'8'!$A$2:$B$1503,2,TRUE)))) -> 0
A156: Train | B156: 18177 | C156: milk | D156: 40 | E156: 3 | F156: -0.01 | G156: 3.490300055 | H156: -2.01 | I156: =IF(H156="","",IF(H156<-2,0,IF(H156>1,0,VLOOKUP(H156,'8'!$A$2:$B$1503,2,TRUE)))) -> 0
A157: Train | B157: 29428 | C157: milk | D157: 40 | E157: 0 | F157: 6.7 | G157: 6.495337845 | H157: 0.2046621554 | I157: =IF(H157="","",IF(H157<-2,0,IF(H157>1,0,VLOOKUP(H157,'8'!$A$2:$B$1503,2,TRUE)))) -> 1
A158: Train | B158: 29428 | C158: milk | D158: 40 | E158: 0.25 | F158: 4.6 | G158: 6.412803575 | H158: -1.812803575 | I158: =IF(H158="","",IF(H158<-2,0,IF(H158>1,0,VLOOKUP(H158,'8'!$A$2:$B$1503,2,TRUE)))) -> 0.187
A159: Train | B159: 29428 | C159: milk | D159: 40 | E159: 0.5 | F159: 2.2 | G159: 6.329011014 | H159: -4.129011014 | I159: =IF(H159="","",IF(H159<-2,0,IF(H159>1,0,VLOOKUP(H159,'8'!$A$2:$B$1503,2,TRUE)))) -> 0
A160: Train | B160: 29428 | C160: milk | D160: 40 | E160: 0.75 | F160: 0.3 | G160: 6.147237132 | H160: -5.847237132 | I160: =IF(H160="","",IF(H160<-2,0,IF(H160>1,0,VLOOKUP(H160,'8'!$A$2:$B$1503,2,TRUE)))) -> 0
A161: Test | B161: 29428 | C161: milk | D161: 40 | E161: 1 | F161: -0.01 | G161: 5.781870095 | H161: -2.01 | I161: =IF(H161="","",IF(H161<-2,0,IF(H161>1,0,VLOOKUP(H161,'8'!$A$2:$B$1503,2,TRUE)))) -> 0
A162: Train | B162: 29428 | C162: milk | D162: 40 | E162: 1.25 | F162: -0.01 | G162: 5.506200421 | H162: -2.01 | I162: =IF(H162="","",IF(H162<-2,0,IF(H162>1,0,VLOOKUP(H162,'8'!$A$2:$B$1503,2,TRUE)))) -> 0
A163: Train | B163: 29428 | C163: milk | D163: 40 | E163: 1.5 | F163: -0.01 | G163: 5.394510706 | H163: -2.01 | I163: =IF(H163="","",IF(H163<-2,0,IF(H163>1,0,VLOOKUP(H163,'8'!$A$2:$B$1503,2,TRUE)))) -> 0
A164: Train | B164: 29428 | C164: milk | D164: 40 | E164: 1.75 | F164: -0.01 | G164: 5.262734889 | H164: -2.01 | I164: =IF(H164="","",IF(H164<-2,0,IF(H164>1,0,VLOOKUP(H164,'8'!$A$2:$B$1503,2,TRUE)))) -> 0
A165: Train | B165: 29428 | C165: milk | D165: 40 | E165: 2 | F165: -0.01 | G165: 5.22446768 | H165: -2.01 | I165: =IF(H165="","",IF(H165<-2,0,IF(H165>1,0,VLOOKUP(H165,'8'!$A$2:$B$1503,2,TRUE)))) -> 0
A166: Test | B166: 29428 | C166: milk | D166: 40 | E166: 2.25 | F166: -0.01 | G166: 4.973392673 | H166: -2.01 | I166: =IF(H166="","",IF(H166<-2,0,IF(H166>1,0,VLOOKUP(H166,'8'!$A$2:$B$1503,2,TRUE)))) -> 0
A167: Train | B167: 29428 | C167: milk | D167: 40 | E167: 2.5 | F167: -0.01 | G167: 4.298084402 | H167: -2.01 | I167: =IF(H167="","",IF(H167<-2,0,IF(H167>1,0,VLOOKUP(H167,'8'!$A$2:$B$1503,2,TRUE)))) -> 0
A168: Train | B168: 29428 | C168: milk | D168: 40 | E168: 2.75 | F168: -0.01 | G168: 3.588450781 | H168: -2.01 | I168: =IF(H168="","",IF(H168<-2,0,IF(H168>1,0,VLOOKUP(H168,'8'!$A$2:$B$1503,2,TRUE)))) -> 0
A169: Train | B169: 29428 | C169: milk | D169: 40 | E169: 3 | F169: -0.01 | G169: 3.158708871 | H169: -2.01 | I169: =IF(H169="","",IF(H169<-2,0,IF(H169>1,0,VLOOKUP(H169,'8'!$A$2:$B$1503,2,TRUE)))) -> 0
A170: Train | B170: 18177 | C170: beef | D170: -20 | E170: 0 | F170: 5.7 | G170: 7 | H170: -1.3 | I170: =IF(H170="","",IF(H170<-2,0,IF(H170>1,0,VLOOKUP(H170,'8'!$A$2:$B$1503,2,TRUE)))) -> 0.699
A171: Train | B171: 18177 | C171: beef | D171: -20 | E171: 3 | F171: 5.4 | G171: 4.7 | H171: 0.7 | I171: =IF(H171="","",IF(H171<-2,0,IF(H171>1,0,VLOOKUP(H171,'8'!$A$2:$B$1503,2,TRUE)))) -> 0.6
A172: Train | B172: 18177 | C172: beef | D172: -20 | E172: 6 | F172: 5.2 | G172: 1.2 | H172: 4 | I172: =IF(H172="","",IF(H172<-2,0,IF(H172>1,0,VLOOKUP(H172,'8'!$A$2:$B$1503,2,TRUE)))) -> 0
A173: Test | B173: 18177 | C173: beef | D173: -20 | E173: 9 | F173: 4.7 | G173: -0.01 | H173: -2.01 | I173: =IF(H173="","",IF(H173<-2,0,IF(H173>1,0,VLOOKUP(H173,'8'!$A$2:$B$1503,2,TRUE)))) -> 0
A174: Train | B174: 18177 | C174: beef | D174: -20 | E174: 12 | F174: 4.3 | G174: -0.01 | H174: -2.01 | I174: =IF(H174="","",IF(H174<-2,0,IF(H174>1,0,VLOOKUP(H174,'8'!$A$2:$B$1503,2,TRUE)))) -> 0
A175: Train | B175: 18177 | C175: beef | D175: -20 | E175: 15 | I175: =IF(H175="","",IF(H175<-2,0,IF(H175>1,0,VLOOKUP(H175,'8'!$A$2:$B$1503,2,TRUE)))) -> 
A176: Train | B176: 18177 | C176: beef | D176: -20 | E176: 18 | I176: =IF(H176="","",IF(H176<-2,0,IF(H176>1,0,VLOOKUP(H176,'8'!$A$2:$B$1503,2,TRUE)))) -> 
A177: Test | B177: 18177 | C177: beef | D177: -20 | E177: 21 | I177: =IF(H177="","",IF(H177<-2,0,IF(H177>1,0,VLOOKUP(H177,'8'!$A$2:$B$1503,2,TRUE)))) -> 
A178: Train | B178: 18177 | C178: beef | D178: -20 | E178: 24 | I178: =IF(H178="","",IF(H178<-2,0,IF(H178>1,0,VLOOKUP(H178,'8'!$A$2:$B$1503,2,TRUE)))) -> 
A179: Train | B179: 18177 | C179: beef | D179: -20 | E179: 27 | I179: =IF(H179="","",IF(H179<-2,0,IF(H179>1,0,VLOOKUP(H179,'8'!$A$2:$B$1503,2,TRUE)))) -> 
A180: Train | B180: 18177 | C180: beef | D180: -20 | E180: 30 | I180: =IF(H180="","",IF(H180<-2,0,IF(H180>1,0,VLOOKUP(H180,'8'!$A$2:$B$1503,2,TRUE)))) -> 
A181: Train | B181: 29428 | C181: beef | D181: -20 | E181: 0 | F181: 6.1 | G181: 7.5 | H181: -1.4 | I181: =IF(H181="","",IF(H181<-2,0,IF(H181>1,0,VLOOKUP(H181,'8'!$A$2:$B$1503,2,TRUE)))) -> 0.599
A182: Train | B182: 29428 | C182: beef | D182: -20 | E182: 3 | F182: 5.1 | G182: 2.5 | H182: 2.6 | I182: =IF(H182="","",IF(H182<-2,0,IF(H182>1,0,VLOOKUP(H182,'8'!$A$2:$B$1503,2,TRUE)))) -> 0
A183: Train | B183: 29428 | C183: beef | D183: -20 | E183: 6 | F183: 4.5 | G183: -0.01 | H183: -2.01 | I183: =IF(H183="","",IF(H183<-2,0,IF(H183>1,0,VLOOKUP(H183,'8'!$A$2:$B$1503,2,TRUE)))) -> 0
A184: Test | B184: 29428 | C184: beef | D184: -20 | E184: 9 | F184: 4.2 | G184: -0.01 | H184: -2.01 | I184: =IF(H184="","",IF(H184<-2,0,IF(H184>1,0,VLOOKUP(H184,'8'!$A$2:$B$1503,2,TRUE)))) -> 0
A185: Train | B185: 29428 | C185: beef | D185: -20 | E185: 12 | F185: 4 | G185: -0.01 | H185: -2.01 | I185: =IF(H185="","",IF(H185<-2,0,IF(H185>1,0,VLOOKUP(H185,'8'!$A$2:$B$1503,2,TRUE)))) -> 0
A186: Train | B186: 29428 | C186: beef | D186: -20 | E186: 15 | I186: =IF(H186="","",IF(H186<-2,0,IF(H186>1,0,VLOOKUP(H186,'8'!$A$2:$B$1503,2,TRUE)))) -> 
A187: Train | B187: 29428 | C187: beef | D187: -20 | E187: 18 | I187: =IF(H187="","",IF(H187<-2,0,IF(H187>1,0,VLOOKUP(H187,'8'!$A$2:$B$1503,2,TRUE)))) -> 
A188: Test | B188: 29428 | C188: beef | D188: -20 | E188: 21 | I188: =IF(H188="","",IF(H188<-2,0,IF(H188>1,0,VLOOKUP(H188,'8'!$A$2:$B$1503,2,TRUE)))) -> 
A189: Train | B189: 29428 | C189: beef | D189: -20 | E189: 24 | I189: =IF(H189="","",IF(H189<-2,0,IF(H189>1,0,VLOOKUP(H189,'8'!$A$2:$B$1503,2,TRUE)))) -> 
A190: Train | B190: 29428 | C190: beef | D190: -20 | E190: 27 | I190: =IF(H190="","",IF(H190<-2,0,IF(H190>1,0,VLOOKUP(H190,'8'!$A$2:$B$1503,2,TRUE)))) -> 
A191: Train | B191: 29428 | C191: beef | D191: -20 | E191: 30 | I191: =IF(H191="","",IF(H191<-2,0,IF(H191>1,0,VLOOKUP(H191,'8'!$A$2:$B$1503,2,TRUE)))) -> 
A192: Train | B192: 18177 | C192: beef | D192: 1 | E192: 0 | F192: 6.2 | G192: 6.299996194 | H192: -0.0999961943 | I192: =IF(H192="","",IF(H192<-2,0,IF(H192>1,0,VLOOKUP(H192,'8'!$A$2:$B$1503,2,TRUE)))) -> 1
A193: Train | B193: 18177 | C193: beef | D193: 1 | E193: 1 | F193: 6 | G193: 6.199988583 | H193: -0.1999885833 | I193: =IF(H193="","",IF(H193<-2,0,IF(H193>1,0,VLOOKUP(H193,'8'!$A$2:$B$1503,2,TRUE)))) -> 1
A194: Train | B194: 18177 | C194: beef | D194: 1 | E194: 2 | F194: 5.7 | G194: 5.799984778 | H194: =IF(F194="","",IF(F194*G194<0,-2.01,F194-G194)) -> -0.09998477778 | I194: =IF(H194="","",IF(H194<-2,0,IF(H194>1,0,VLOOKUP(H194,'8'!$A$2:$B$1503,2,TRUE)))) -> 1
A195: Train | B195: 18177 | C195: beef | D195: 1 | E195: 3 | F195: 5.6 | G195: 5.000030446 | H195: 0.5999695544 | I195: =IF(H195="","",IF(H195<-2,0,IF(H195>1,0,VLOOKUP(H195,'8'!$A$2:$B$1503,2,TRUE)))) -> 0.802
A196: Test | B196: 18177 | C196: beef | D196: 1 | E196: 4 | F196: 5.5 | G196: 4.8 | H196: 0.7 | I196: =IF(H196="","",IF(H196<-2,0,IF(H196>1,0,VLOOKUP(H196,'8'!$A$2:$B$1503,2,TRUE)))) -> 0.602
A197: Train | B197: 18177 | C197: beef | D197: 1 | E197: 5 | F197: 5.6 | G197: 4.599988583 | H197: 1.000011417 | I197: =IF(H197="","",IF(H197<-2,0,IF(H197>1,0,VLOOKUP(H197,'8'!$A$2:$B$1503,2,TRUE)))) -> 0
A198: Train | B198: 18177 | C198: beef | D198: 1 | E198: 6 | F198: 4.8 | G198: 4.300007611 | H198: 0.4999923889 | I198: =IF(H198="","",IF(H198<-2,0,IF(H198>1,0,VLOOKUP(H198,'8'!$A$2:$B$1503,2,TRUE)))) -> 1
A199: Train | B199: 18177 | C199: beef | D199: 1 | E199: 7 | F199: 4.5 | G199: 4.199984778 | H199: 0.3000152222 | I199: =IF(H199="","",IF(H199<-2,0,IF(H199>1,0,VLOOKUP(H199,'8'!$A$2:$B$1503,2,TRUE)))) -> 1
A200: Train | B200: 18177 | C200: beef | D200: 1 | E200: 8 | F200: 4.2 | G200: 3.700019029 | H200: 0.4999809715 | I200: =IF(H200="","",IF(H200<-2,0,IF(H200>1,0,VLOOKUP(H200,'8'!$A$2:$B$1503,2,TRUE)))) -> 1
... 457 more rows

Sheet 7
A1: Q | B1: A | C1: Decision Tree for Extrapolation (Other Food)
A2: 1 | B2: ='5'!B11 -> no | C2: Was the model validated for interpolation? | R2: yes
A3: 2 | B3: yes | C3: Were data independent? | R3: no
A4: 3 | B4: yes | C4: Were data collected with the same methods as dependent data except for the new independent variable being evaluated?
A5: 4 | B5: yes | C5: Were the independent variables at the same values as those used in model development?
A6: 5 | B6: no | C6: Was there a minimum of two prediction cases per combination of independent variables?
A7: 6 | B7: yes | C7: Did all combinations of the independent variables have the same number of prediction cases?
A8: 7 | B8: no | C8: Was the overall pAPZ ≥ 0.70?
A9: 8 | B9: no | C9: Was pAPZ for all individual levels of independent variables ≥ 0.70?
A10: 9 | B10: no | C10: Was a single pAPZ ≥ 0.70 for every three consecutive combinations of the independent variables?
A11: 10 | B11: =IF(CONCATENATE(B2,B3,B4,B5,B6,B7,B8,B9,B10)="yesyesyesyesyesyesyesyesyes","yes","no") -> no | C11: Was the model validated for extrapolation?
A12: pAPZ | B12: Temp
A13: Other | B13: -20 | C13: 1 | D13: 10 | E13: 20 | F13: 30 | G13: 40 | H13: Avg
A14: milk | B14: 0.1533666667 | C14: 0.9565333333 | D14: 0.6001666667 | E14: 0.2153846154 | F14: 0.2075384615 | G14: 0.08411538462 | H14: 0.3838392857
A15: 18177 | B15: 0.1734 | C15: 0.9799333333 | D15: 0.6204 | E15: 0.1729230769 | F15: 0.1866153846 | G15: 0.07692307692 | H15: 0.3842857143
A16: 29428 | B16: 0.1333333333 | C16: 0.9331333333 | D16: 0.5799333333 | E16: 0.2578461538 | F16: 0.2284615385 | G16: 0.09130769231 | H16: 0.3833928571
A17: beef | B17: 0.1898 | C17: 0.7968666667 | D17: 0.5267333333 | E17: 0.03615384615 | F17: 0.099 | G17: 0.005 | H17: 0.3057432432
A18: 18177 | B18: 0.2598 | C18: 0.7937333333 | D18: 0.6666666667 | E18: 0 | F18: 0.04415384615 | G18: 0 | H18: 0.3213378378
A19: 29428 | B19: 0.1198 | C19: 0.8 | D19: 0.3868 | E19: 0.07230769231 | F19: 0.1538461538 | G19: 0.01 | H19: 0.2901486486
A20: Avg | B20: 0.162475 | C20: 0.8767 | D20: 0.56345 | E20: 0.1257692308 | F20: 0.1532692308 | G20: 0.04455769231 | H20: 0.3472626582
A36: Instructions
A37: 1. Update the pivot table
B38: a. Click on A10 → Pivot Table → Analyze → Refresh → Filter for Rows → Select All → Deselect Blank → Filter for Columns → Select All → Deselect Blank.
B39: b. Click Field List, Σ Values Pull Down Menu → Value Field Settings → Select Count.
A40: 2. Answer (A) questions (Q) 2 to 6 for test data criteria in the Decision Tree by selecting "yes" or "no" from the pull-down menus.
A41: 3. Change Σ Value from Count to Average
B42: a. Click Field List, Σ Values Pull Down Menu → Value Field Settings → Select Average.
B43: b. Click on any pAPZ value in the pivot table and then click on APZ Macro button to highlight pAPZ that are < 0.7.
A44: 4. Answer (A) questions (Q) 7 to9 for model performance criteria in the Decision Tree by selecting "yes" or "no" from the pull-down menu.

Sheet 8
A1: Residual | B1: APZ
A2: -2 | B2: -8.812395258e-16
A3: -1.999 | B3: 0.001
A4: -1.998 | B4: 0.002
A5: -1.997 | B5: 0.003
A6: -1.996 | B6: 0.004
A7: -1.995 | B7: 0.005
A8: -1.994 | B8: 0.006
A9: -1.993 | B9: 0.007
A10: -1.992 | B10: 0.008
A11: -1.991 | B11: 0.009
A12: -1.99 | B12: 0.01
A13: -1.989 | B13: 0.011
A14: -1.988 | B14: 0.012
A15: -1.987 | B15: 0.013
A16: -1.986 | B16: 0.014
A17: -1.985 | B17: 0.015
A18: -1.984 | B18: 0.016
A19: -1.983 | B19: 0.017
A20: -1.982 | B20: 0.018
A21: -1.981 | B21: 0.019
A22: -1.98 | B22: 0.02
A23: -1.979 | B23: 0.021
A24: -1.978 | B24: 0.022
A25: -1.977 | B25: 0.023
A26: -1.976 | B26: 0.024
A27: -1.975 | B27: 0.025
A28: -1.974 | B28: 0.026
A29: -1.973 | B29: 0.027
A30: -1.972 | B30: 0.028
A31: -1.971 | B31: 0.029
A32: -1.97 | B32: 0.03
A33: -1.969 | B33: 0.031
A34: -1.968 | B34: 0.032
A35: -1.967 | B35: 0.033
A36: -1.966 | B36: 0.034
A37: -1.965 | B37: 0.035
A38: -1.964 | B38: 0.036
A39: -1.963 | B39: 0.037
A40: -1.962 | B40: 0.038
A41: -1.961 | B41: 0.039
A42: -1.96 | B42: 0.04
A43: -1.959 | B43: 0.041
A44: -1.958 | B44: 0.042
A45: -1.957 | B45: 0.043
A46: -1.956 | B46: 0.044
A47: -1.955 | B47: 0.045
A48: -1.954 | B48: 0.046
A49: -1.953 | B49: 0.047
A50: -1.952 | B50: 0.048
A51: -1.951 | B51: 0.049
A52: -1.95 | B52: 0.05
A53: -1.949 | B53: 0.051
A54: -1.948 | B54: 0.052
A55: -1.947 | B55: 0.053
A56: -1.946 | B56: 0.054
A57: -1.945 | B57: 0.055
A58: -1.944 | B58: 0.056
A59: -1.943 | B59: 0.057
A60: -1.942 | B60: 0.058
A61: -1.941 | B61: 0.059
A62: -1.94 | B62: 0.06
A63: -1.939 | B63: 0.061
A64: -1.938 | B64: 0.062
A65: -1.937 | B65: 0.063
A66: -1.936 | B66: 0.064
A67: -1.935 | B67: 0.065
A68: -1.934 | B68: 0.066
A69: -1.933 | B69: 0.067
A70: -1.932 | B70: 0.068
A71: -1.931 | B71: 0.069
A72: -1.93 | B72: 0.07
A73: -1.929 | B73: 0.071
A74: -1.928 | B74: 0.072
A75: -1.927 | B75: 0.073
A76: -1.926 | B76: 0.074
A77: -1.925 | B77: 0.075
A78: -1.924 | B78: 0.076
A79: -1.923 | B79: 0.077
A80: -1.922 | B80: 0.078
A81: -1.921 | B81: 0.079
A82: -1.92 | B82: 0.08
A83: -1.919 | B83: 0.081
A84: -1.918 | B84: 0.082
A85: -1.917 | B85: 0.083
A86: -1.916 | B86: 0.084
A87: -1.915 | B87: 0.085
A88: -1.914 | B88: 0.086
A89: -1.913 | B89: 0.087
A90: -1.912 | B90: 0.088
A91: -1.911 | B91: 0.089
A92: -1.91 | B92: 0.09
A93: -1.909 | B93: 0.091
A94: -1.908 | B94: 0.092
A95: -1.907 | B95: 0.093
A96: -1.906 | B96: 0.094
A97: -1.905 | B97: 0.095
A98: -1.904 | B98: 0.096
A99: -1.903 | B99: 0.097
A100: -1.902 | B100: 0.098
A101: -1.901 | B101: 0.099
A102: -1.9 | B102: 0.1
A103: -1.899 | B103: 0.101
A104: -1.898 | B104: 0.102
A105: -1.897 | B105: 0.103
A106: -1.896 | B106: 0.104
A107: -1.895 | B107: 0.105
A108: -1.894 | B108: 0.106
A109: -1.893 | B109: 0.107
A110: -1.892 | B110: 0.108
A111: -1.891 | B111: 0.109
A112: -1.89 | B112: 0.11
A113: -1.889 | B113: 0.111
A114: -1.888 | B114: 0.112
A115: -1.887 | B115: 0.113
A116: -1.886 | B116: 0.114
A117: -1.885 | B117: 0.115
A118: -1.884 | B118: 0.116
A119: -1.883 | B119: 0.117
A120: -1.882 | B120: 0.118
A121: -1.881 | B121: 0.119
A122: -1.88 | B122: 0.12
A123: -1.879 | B123: 0.121
A124: -1.878 | B124: 0.122
A125: -1.877 | B125: 0.123
A126: -1.876 | B126: 0.124
A127: -1.875 | B127: 0.125
A128: -1.874 | B128: 0.126
A129: -1.873 | B129: 0.127
A130: -1.872 | B130: 0.128
A131: -1.871 | B131: 0.129
A132: -1.87 | B132: 0.13
A133: -1.869 | B133: 0.131
A134: -1.868 | B134: 0.132
A135: -1.867 | B135: 0.133
A136: -1.866 | B136: 0.134
A137: -1.865 | B137: 0.135
A138: -1.864 | B138: 0.136
A139: -1.863 | B139: 0.137
A140: -1.862 | B140: 0.138
A141: -1.861 | B141: 0.139
A142: -1.86 | B142: 0.14
A143: -1.859 | B143: 0.141
A144: -1.858 | B144: 0.142
A145: -1.857 | B145: 0.143
A146: -1.856 | B146: 0.144
A147: -1.855 | B147: 0.145
A148: -1.854 | B148: 0.146
A149: -1.853 | B149: 0.147
A150: -1.852 | B150: 0.148
A151: -1.851 | B151: 0.149
A152: -1.85 | B152: 0.15
A153: -1.849 | B153: 0.151
A154: -1.848 | B154: 0.152
A155: -1.847 | B155: 0.153
A156: -1.846 | B156: 0.154
A157: -1.845 | B157: 0.155
A158: -1.844 | B158: 0.156
A159: -1.843 | B159: 0.157
A160: -1.842 | B160: 0.158
A161: -1.841 | B161: 0.159
A162: -1.84 | B162: 0.16
A163: -1.839 | B163: 0.161
A164: -1.838 | B164: 0.162
A165: -1.837 | B165: 0.163
A166: -1.836 | B166: 0.164
A167: -1.835 | B167: 0.165
A168: -1.834 | B168: 0.166
A169: -1.833 | B169: 0.167
A170: -1.832 | B170: 0.168
A171: -1.831 | B171: 0.169
A172: -1.83 | B172: 0.17
A173: -1.829 | B173: 0.171
A174: -1.828 | B174: 0.172
A175: -1.827 | B175: 0.173
A176: -1.826 | B176: 0.174
A177: -1.825 | B177: 0.175
A178: -1.824 | B178: 0.176
A179: -1.823 | B179: 0.177
A180: -1.822 | B180: 0.178
A181: -1.821 | B181: 0.179
A182: -1.82 | B182: 0.18
A183: -1.819 | B183: 0.181
A184: -1.818 | B184: 0.182
A185: -1.817 | B185: 0.183
A186: -1.816 | B186: 0.184
A187: -1.815 | B187: 0.185
A188: -1.814 | B188: 0.186
A189: -1.813 | B189: 0.187
A190: -1.812 | B190: 0.188
A191: -1.811 | B191: 0.189
A192: -1.81 | B192: 0.19
A193: -1.809 | B193: 0.191
A194: -1.808 | B194: 0.192
A195: -1.807 | B195: 0.193
A196: -1.806 | B196: 0.194
A197: -1.805 | B197: 0.195
A198: -1.804 | B198: 0.196
A199: -1.803 | B199: 0.197
A200: -1.802 | B200: 0.198
... 1303 more rows
